Workbook

Sheet Cover Page
D1: Add company logo
N2: Version 23.4a (for incinerators) - 15/11/2023
N4: Note that there is another version of this template available for co-incinerators
B8: Add photo
N13: Notes:
N14: This template may require adjustments by individual operators to meet specific reporting requirements as defined in the site Permit(s)
B29: Annual Performance Report 2023
R30: i
B31: Permit EPR/NP3638ZS
B33: Peterborough Energy Recovery Facility
B37: Viridor Peterborough Ltd
B39: Year: | C39: 2023
B41: Address: | C41: Fourth Drove,Peterborough, PE1 5UR
B43: Tel: | C43: 01733 465284
B45: Email: | C45: kdjones@viridor.co.uk
B47: Prepared by: | C47: K Jones | F47: Position: | G47: EHS Manager
B49: Approved by: | C49: C Knowles | F49: Position: | G49: Plant Manager
B51: Version:
B53: Issue Date: | C53: 2023-11-01

Sheet Contents
A1: =+'Cover Page'!$B$29 -> Annual Performance Report 2023 | E1: =+'Cover Page'!$B$33 -> Peterborough Energy Recovery Facility
A3: Contents | K3: Notes:
A4: Section | B4: Subject | H4: Page | K4: Section references and Page nos. to be inserted
B5: Facility Information | H5: 3 | K5: Sections and Subjects may require adjustment by individual operators to meet specific reporting requirements as defined in the sites Permit(s)
B6: Operational Data | H6: 4-5.
B7: Operational Summary | H7: 6
B8: Performance Form 1 | H8: 7-8.
B9: Energy Form 1 | H9: 9
B10: Permit Compliance | H10: 10-11.
B11: Improvements | H11: 12
B12: Public Liasion | H12: 13
B13: Carbon dioxide and nitrous oxide emissions | H13: 14
B14: Residue Quality | H14: 15
B15: Emissions to Water | H15: 16
B16: Emissions to Air (periodically monitored) | H16: 17
B17: Emissions to Air (continuously monitored) | H17: 18
B18: Hydrogen Chloride emissions | H18: 19
B19: Sulphur Dioxdie emsissions | H19: 20
B20: Oxides of Notrigen emissions | H20: 21
B21: Total Organic Carbon emissions | H21: 22
B22: Particulate Matter emissions | H22: 23
B23: Carbon Monoxide emissions | H23: 24
B24: Ammonia emissions | H24: 25
A27: Version Control
A28: Section | B28: Information | H28: Date
A35: Distribution
A36: Copy | B36: Name, Role | H36: No.
A37: cc | B37: Christopher Knowles, Plant Manager
A38: cc | B38: Salena Pass, EA Office
A45: This report is required under the Industrial Emissions Directive’s Article 55(2) requirements on reporting and public information on waste incineration plants and co-incineration plants, which require the operator to produce an annual report on the functioning and monitoring of the plant and make it available to the public.

Sheet Facility Info
A1: =+'Cover Page'!$B$29 -> Annual Performance Report 2023 | E1: =+'Cover Page'!$B$33 -> Peterborough Energy Recovery Facility
A3: Plant Description and Design | K3: Notes:
A5: Peterborough Energy from Waste (EfW) facility is located on the eastern side of Peterborough and occupies an area of 4.5 hectares within the Fengate Industrial Estate, approximately 2.5km south-east of the city centre. The ERF enables the city of Peterborough and area to divert about 110,000 (Variation to increased from 85,000) tonnes of residual waste from landfill each year. The facility is a single line plant which has a capacity for 110,000 tonnes per year and generates electricity (on average 8.5-8.8MWh) to be used internally and exported to the National Grid. The facility design and layout of the steam turbine allows for potential heat export to local users, a small district heating scheme was commissioned in March 2017 serving Dodson House (next door building owned by Peterborough City Council) although this is currently dormant. Viridor Energy Ltd are contracted by Viridor Peterborough Ltd to operate and maintain the plant on their behalf and that of Peterborough City Council. | K5: Include summary of plant design, design capacity, no. of combustion lines, electrical and heat capacity and any other general information that descibes the facility, its location and purpose
A20: Summary of Operational Processes and Procedures
A22: Incoming refuse collection vehicles and bulk transport vehicles enter the site and proceed to the incoming weighbridge. After weighing in, the vehicles continue to the enclosed reception hall where they will discharge their load into the waste storage bunker. Vehicle loads are inspected randomly in the Tipping Hall to confirm the nature of incoming waste. Once vehicles have deposited their waste they leave the site via a second weighbridge. Potential emissions of odour and dust from the tipping hall and refuse bunkers are controlled by forced draught fans located above the refuse bunkers. These draw air from the bunker hall and reception area into the furnace to feed the combustion process, creating a slight negative pressure. An mist odour supression system complements this. The waste combustion takes place on a Volund Dynagrate the heat generated being used to create superheated steam which is used to drive the steam turbine and generate electricity. Heat from turbine bleeds can be used for combined heat and power systems and is also used for pre-heating of combustion air and operation of the deaerator to maximise efficiency. Condensing of the steam takes place via air cooled condensing system and the condensate cycles back around in a closed system (other than necessary top up). Emission control is via injection of ammonia into the furnace for NOx control via SNCR technology. At the end of the boiler and gas path lime and activated carbon are added to remove acidic gases, dioxins, furans and heavy metals before this is all filtered by a bag filter system which removes the lime and carbon added and particulates from the combustion process producing APCr. Emissions are measured continuously in stack and by extractive stack measurements as required by the environmental permit. Residues from the process, IBA and APCr are both sent to specialist reprocessing sites. IBA has metals removed for recyling and is reprocessed into IBAA (Incinerator Bottom Ash Aggregate). The APCr is sent to OCO Technology (formally Carbon8) who use accelerated cabonation technology to produce a carbon negative aggregate material which encapsulates the absorbed substances from the APCr. Maintenance is controlled by a CMMS system and consists of planned preventative maintenance (ppm), derived from both experience of the plant and OEM requirements, and reactive maintenance. An annual shutdown period happens each summer during which maintenance and statutory inspections are carried out. The plant operates a document control system meeting the requirements of the Viridor document management system and ISO 9001, 14001, 45001 and 50001 | K22: Include summary of key processes and procedures such as (but not limited to); waste reception, control rooms, grate, bed and bolier, energy & heat generation, cooling systems, residue management, emission controls, health and safety systems, maintenance

Sheet Operational Summary
A1: =+'Cover Page'!$B$29 -> Annual Performance Report 2023 | E1: =+'Cover Page'!$B$33 -> Peterborough Energy Recovery Facility
A3: Summary of Plant Operations and Maintenance during the reporting year | K3: Notes:
A5: Turbine run time 1929.1 hours for Q1 Combustion time 1959.7 hours for Q1 APCR produced 447.84 Tonnes for Q1 IBA produced 4307 Tonnes for Q1 Total waste recieved 21,912 Tonnes with 1.6 Tonnes rejected for Q1 Other waste removed 456.77 haz and non-hazardous Tonnes for the year. Q1:- January, the plant had a planned outage to carryout investigational work/remedial repairs on a failed slag-pusher, and incline conveyor for a toal of 196.5 hours. March, planned outage for 3.75 hours to service the cranes. Q2: April:-15/04/2023. HCI exceedence. 3 abnormal operating hours, details submitted to EA officer 26/04/2023 June:- 05/06/2023, SO2 exceedence. 1/2 hour abnormal operations , details submitted to EA officer 12/07/2023(following investigation for SO2 exceedence 04/07/2023) June:- 11/06/20223, Dust exceedence. 1/2 hour abnormal operations, details submitted to EA officer 14/06/2023. June:-14/06/2023 HCI exceedence, 2 hours of abnormal operations. Details submtted to EA Officer 22/06/2023. Q3. July:- 04/07/2023 SO2 exceedence,1/2 hr abnormal operations,details submitted to EA officer 12/07/2023 July:- CEM's sofware annual inspection. September:- 4th - 19th Outage. back online 1 day early, 18th September. Q4 Oct - Nov carried out NOx trials. November 24th. SO2 breach and Notification 5 submitted within 24 hours. 14.7 total hours unplanned downtime due to blocked grate riddlings conveyor (9hours) and waste crane issues (5.7 hours) | K5: Include summary of key operational and/or mainteanance activity undertaken in the year, such as any major component upgrades and/or replacements
A29: Summary of Residue Handling for the reporting year
A31: Johnsons Agrgregatescollect thee IBA. They remove and recycle the ferrous and non-ferrous metals and then create IBAA (Incinerator Bottom Ash Aggregate) from the remaining material. Their Aggregates team then utilise this in various construction and highways projects. APCr is collected by direct transfer from the on site silo into transport tanker by Grundons and goes to the O.C.O Technology Ltd (formally Carbon8) site at Brandon (EPR/JP3332FK) (unless not possible due to operational issues at OCO in which case it is directed to one of their other plants) where it is taken through their accelerated carbonation technology. These carbonated wastes are blended with binders and fillers and pellitised to form an aggregate. In November, to support the NOx trials, additional IBA and APCr samples were taken for comparative analysis, including Ammoniacal Nitrogen Sampling. These samples were sent to WRc and nrm. PBR ERF was also involved in trials of POP containing plastics and their impact on emissions and residues. These extra samples were sent to Wrc | K31: Include in here a summary of residue handling regimes and destinations

Sheet Operational Data
A1: =+'Cover Page'!$B$29 -> Annual Performance Report 2023 | E1: =+'Cover Page'!$B$33 -> Peterborough Energy Recovery Facility
A3: Operational Data
A4: Plant Size | B4: 110000 | D4: tonnes pa | E4: 28 | F4: MWth | G4: 9 | H4: MWe | J4: Notes:
A5: No. of combustion lines | B5: 1 | D5: No. of Turbines: | F5: 1 | J5: * - RDF to include SRF
J6: ** - Combusted tonnage = tonnes delivered in period + (tonnes in bunker at start of period – tonnes in bunker at end of period), or equivalent calculation depending on plant type
A7: Waste types received | B7: Unit | C7: Q1 | D7: Q2 | E7: Q3 | F7: Q4 | G7: Year Total | H7: %
A8: Household / Local Authority 20 03 07 | B8: tonnes | C8: 1205 | D8: 428.56 | E8: 198.62 | F8: 77.74 | G8: =SUM(C8:F8) -> 1909.92 | H8: =IF(G8>0,G8/$G$20,"-") -> 0.02218438458
A9: Commercial & Industrial 20 03 07 | D9: 7.49 | E9: 10.46 | F9: 15.12 | G9: =SUM(C9:F9) -> 33.07 | H9: 0.0003841195433 | J9: *** - CHP plants only
A10: Hazardous | C10: 0 | D10: 0 | E10: 0 | F10: 0 | G10: 0 | H10: - | J10: **** Availability Definition: 'the availability of a line is to be calculated by the number of hours the line reported Continuously Monitored emission levels to the Regulator through the calendar year divided by the total number of hours in that year. The overall plant availability is calculated as the Mean of all lines in the plant. For clarity this includes periods of abnormal operation.' Rationale: The primary function of an Energy from Waste facility is the disposal of waste. It follows therefore that the availability of a plant is determined by the period of time a facility spends undertaking this activity.
A11: Clinical 18 01 04 | C11: 1790 | D11: 3405 | E11: 1848 | F11: 2802.68 | G11: 9845.68 | H11: 0.114360995
A12: Waste wood (biomass) N/A | C12: 0 | D12: 0 | E12: 0 | F12: 0 | G12: 0 | H12: -
A13: Refuse Derived Fuel * - H'hold/LA 19 12 12 | C13: 1486 | D13: 1005 | E13: 1260 | F13: 1256.02 | G13: =SUM(C13:F13) -> 5007.02 | H13: 0.05815827746
A14: Refuse Derived Fuel * - C&I 19 12 12 | F14: 405.8 | G14: 405.8 | H14: 0.004713508034
A15: Household / Local Authority 20 03 01 | C15: 12460 | D15: 13292.64 | E15: 12593.06 | F15: 10876.72 | G15: 49222.42 | H15: 0.5717355153
A16: commercial & industrial 20 03 01 | C16: 4847.65 | D16: 3649.05 | E16: 3776.74 | F16: 6620.8 | G16: 18894.24 | H16: 0.2194631642
A17: Industrial street cleaning 20 03 03 | C17: 123.34 | D17: 229 | E17: 41 | F17: 21.52 | G17: 414.86 | H17: 0.004818743082
A18: Commercial & Industrial 20 01 39 plastics | C18: 0 | D18: 0 | E18: 0 | F18: 359.98 | G18: 359.98 | H18: 0.004181292809
C19: 0 | D19: 0 | E19: 0 | F19: 0 | G19: 0 | H19: -
A20: Total waste received | C20: =SUM(C8:C19) -> 21911.99 | D20: =SUM(D8:D19) -> 22016.74 | E20: =SUM(E8:E19) -> 19727.88 | F20: =SUM(F8:F19) -> 22436.38 | G20: 86092.99 | H20: 1
A21: Rejected Waste | C21: 1.6 | G21: =SUM(C21:F21) -> 1.6 | H21: 1.858455607e-05
A22: Unprocessed waste transferred out | C22: 283 | G22: =SUM(C22:F22) -> 283 | H22: 0.003287143355
A23: Total waste combusted ** | C23: 21077 | D23: 21585 | E23: 18709 | F23: 24090.2 | G23: =SUM(C23:F23) -> 85461.2 | H23: 0.9926615396
J24: Password for protected cells A password has been set to prevent accidental editing of cells with formulae. If you still need to make an edit for some reason then the password = 1234
A25: Energy Usage / Export | B25: Unit | C25: Q1 | D25: Q2 | E25: Q3 | F25: Q4 | G25: Year Total | H25: KWh/te
A26: Power Generated | B26: MWh | C26: 14854 | D26: 13169 | E26: 13793 | F26: 17733 | G26: =SUM(C26:F26) -> 59549 | H26: =IF(G26>0,G26*1000/$G$23,"-") -> 696.7957389 | K26: NOTE:- clinical line 18 01 04 is non-haz offensive waste
A27: Power Exported | C27: 13083 | D27: 11287 | E27: 11927 | F27: 15761 | G27: =SUM(C27:F27) -> 52058 | H27: =IF(G27>0,G27*1000/$G$23,"-") -> 609.1419264 | K27: Approval given for acccepting 18 01 07 under RPS C23
A28: Power Used on site | C28: 1725 | D28: 1729 | E28: 1708 | F28: 1973 | G28: =SUM(C28:F28) -> 7135 | H28: =IF(G28>0,G28*1000/$G$23,"-") -> 83.48817943
A29: Power Imported | C29: 59 | D29: 153.08 | E29: 0 | F29: 0 | G29: 212.08 | H29: =IF(G29>0,G29*1000/$G$23,"-") -> 2.481593987
A30: Parasitic Load | B30: % | C30: =IF(C26>0,1-C27/(C26+C29),"-") -> 0.122711728 | D30: =IF(D26>0,1-D27/(D26+D29),"-") -> 0.1527599294 | E30: =IF(E26>0,1-E27/(E26+E29),"-") -> 0.1352860146 | F30: =IF(F26>0,1-F27/(F26+F29),"-") -> 0.1112050978 | G30: =IF(G26>0,1-G27/(G26+G29),"-") -> 0.1288979383
A31: Thermal Energy Produced *** | B31: MWh | G31: =SUM(C31:F31) -> 0 | H31: =IF(G31>0,G31*1000/$G$23,"-") -> -
A32: Thermal Energy Exported *** | G32: 0 | H32: =IF(G32>0,G32*1000/$G$23,"-") -> -
A33: R1 value (if applicable) | B33: R1 | C33: 0.8 | D33: 0.8 | E33: 0.8 | F33: 0.8
A35: Waste Disposal & Recovery | B35: Unit | C35: Q1 | D35: Q2 | E35: Q3 | F35: Q4 | G35: Year Total | H35: % inputs | J35: NB
A36: 19 01 07* APC Residues - produced | B36: tonnes | C36: 447.84 | D36: 483.44 | E36: 417.02 | F36: 397.76 | G36: =SUM(C36:F36) -> 1746.06 | H36: =IF(G36>0,G36/$G$23,"-") -> 0.02043102601 | J36: APCr 20T to landfill D5
A37: 19 01 12 IBA - produced | C37: 4307 | D37: 4331.57 | E37: 4291.14 | F37: 4986.86 | G37: 17916.57 | H37: =IF(G37>0,G37/$G$23,"-") -> 0.2096456638
A38: 13 01 11* Synthetic Hydraulic oils | C38: 4 | D38: 0 | E38: 0 | F38: 0 | G38: 4 | H38: 4.680486583e-05
A39: 13 02 05* mineral based, non-chlorinated engine, gear & lubricating oils | C39: 1.5 | D39: 0 | E39: 0 | F39: 1.8 | G39: 3.3 | H39: 3.861401431e-05
A40: 13 05 03* Interceptor sludge | C40: 107.8 | D40: 0 | E40: 25 | F40: 37.8 | G40: 170.6 | H40: 0.001996227528
A41: 15 01 06 mixed packaging | C41: 0.04 | D41: 0 | E41: 0 | F41: 0 | G41: 0.04 | H41: 4.680486583e-07
A42: 16 06 01* lead acid batteries | C42: 0 | D42: 0 | E42: 0 | F42: 0 | G42: 0 | H42: -
A43: 17 09 04*** Mixed construction/demolition | C43: 0.6 | D43: 0 | E43: 2.38 | F43: 0 | G43: 2.98 | H43: 3.486962505e-05 | I43: xx xx xx** | J43: Mirror haz
A44: 19 12 11** other waste(incl mixtures of materials) from mechanical treatment of waste containing hazardous substance | C44: 0.2 | D44: 0 | E44: 0 | F44: 0 | G44: 0.2 | H44: 2.340243292e-06 | I44: xx xx xx*** | J44: mirror non
A45: 19 12 12*** other waste incl mixtures of materials | C45: 326.24 | D45: 0 | E45: 0 | F45: 0 | G45: 326.24 | H45: 0.003817404857
A46: 20 01 21* fluorescent tubes & other mercury containing waste | C46: 0 | D46: 0 | E46: 0.021 | F46: 0 | G46: 0.021 | H46: 2.457255456e-07
A47: 20 01 23* Equipment containing CFC's (fridge) | C47: 0 | D47: 0 | E47: 0 | F47: 0 | G47: 0 | H47: -
A48: 20 01 35* WEEE | C48: 0 | D48: 0 | E48: 0.043 | F48: 0 | G48: 0.043 | H48: 5.031523077e-07
A49: 20 01 40 metal recyling | C49: 16.24 | D49: 0 | E49: 25.86 | F49: 11.7 | G49: 53.8 | H49: 0.0006295254455
A50: 20 03 01 Mixed municiple | C50: 1.6 | D50: 0 | E50: 0 | F50: 0 | G50: 1.6 | H50: 1.872194633e-05
A51: 16 01 14* antifreeze fluids containing hazaredous substances | C51: 0 | D51: 0 | E51: 0 | F51: 0.045 | G51: 0.045 | H51: 5.265547406e-07
C52: =SUM(C36:C51) -> 5213.06 | D52: =SUM(D36:D51) -> 4815.01 | E52: =SUM(E36:E51) -> 4761.464 | F52: =SUM(F36:F51) -> 5435.965 | G52: 20225.499 | H52: =IF(G52>0,G52/$G$23,"-") -> 0.2366629418
A54: Raw Material Usage | B54: Unit | C54: Q1 | D54: Q2 | E54: Q3 | F54: Q4 | G54: Year Total | H54: kg or Ltr /te
A55: Mains Water | B55: ltrs | C55: 10210000 | D55: 12831000 | E55: 11542000 | F55: 14045000 | G55: =SUM(C55:F55) -> 48628000 | H55: =IF(G55>0,G55/$G$23,"-") -> 569.0067539
A56: Other Water - domestic use | B56: ltrs | C56: 8072 | D56: 157000 | E56: 115000 | F56: 318000 | G56: 598072 | H56: =IF(G56>0,G56/$G$23,"-") -> 6.99816993
A57: Ammonia | B57: kgs | C57: 66190.98 | D57: 40357.3 | E57: 39528.29 | F57: 70160 | G57: 216236.57 | H57: 2.530230912
B58: kgs | G58: =SUM(C58:F58) -> 0 | H58: - | J58: kgs ammonia calculated from volume using density ammonia soution = .911
A59: Activated Carbon | B59: kgs | C59: 6970 | D59: 7230 | E59: 7150 | F59: 9330 | G59: 30680 | H59: 0.3589933209
A60: hydrated lime | B60: kgs | C60: 227040 | D60: 258100 | E60: 227960 | F60: 330730 | G60: 1043830 | H60: 12.21408078
A61: Furnace Flame - for burners | B61: ltrs | C61: 29876 | D61: 146618 | E61: 68627 | F61: 25330 | G61: 270451 | H61: 3.164605692
A62: Diesel for yellow plant and generator (and hired compressors) | B62: ltrs | C62: 3820 | D62: 3801 | E62: 17701 | F62: 47669 | G62: 72991 | H62: 0.8540834905
A63: other
A65: Summary | B65: Line/Unit | C65: Q1 | D65: Q2 | E65: Q3 | F65: Q4 | G65: Year Total | I65: Hrs in year
A66: Availability of waste combustion by line, hrs **** | B66: =+B5 -> 1 | C66: 1959.7 | D66: 1896.16 | E66: 1781.5 | F66: 2118 | G66: =SUM(C66:F66) -> 7755.36 | H66: =+G66/$I$66 -> 0.8853150685 | I66: 8760
A67: Hours of turbine operations, hrs | B67: 1 | C67: 1929.1 | D67: 1882.27 | E67: 1454.5 | F67: 2092 | G67: 7357.87 | H67: =+G67/$I$66 -> 0.8399394977
A68: Hours of heat / steam export | G68: 0 | H68: =IF(B68>0,#REF!/I66,"n/a") -> n/a
A69: Net Calorific Value of waste | B69: MJ/kg | C69: 9.4 | D69: 8.16 | E69: 9.4 | F69: 8.58 | G69: 35.54 | H69: =SUM(C69:F69/4) -> 8.885
A70: Abnormal Events | B70: qty. | C70: 0 | D70: 5 | E70: 0 | F70: 0 | G70: 5 | H70: =IF(G70>0,"yes","no") -> yes
A71: Abnormal operation | B71: hours | C71: 0 | D71: 6.5 | E71: 0 | F71: 0 | G71: 6.5 | H71: =+(G71)/I66 -> 0.0007420091324
A72: Permit Breaches | B72: qty. | C72: 0 | D72: 0 | E72: 0 | F72: 1 | G72: 1 | H72: =IF(G72>0,"yes","no") -> yes

Sheet Perf. Form 1
A1: =+'Cover Page'!C39 -> 2023 | B1: Annual Reporting Performance Form 1
A3: =+'Cover Page'!B31 -> Permit EPR/NP3638ZS | F3: Operator: | G3: =+'Cover Page'!B37:I37 -> 0
A4: Facility: | B4: =+'Cover Page'!B33:I33 -> Peterborough Energy Recovery Facility | F4: Form: | G4: Performance 1
A6: Reporting Period from: | D6: 2023-01-01 | F6: to: | G6: 2023-12-31
A8: =+A1 -> 2023 | B8: Annual Reporting of Waste Disposal and Recovery
A9: Waste Description | C9: Disposal Route(s) | E9: Disposal Tonnes | G9: Recovery Tonnes | I9: % / tonne of waste incinerated
A10: 1) Hazardous Wastes
A11: 19 01 07 APC Residues | C11: OCO Tecnology | G11: ='Operational Data'!G36 -> 1746.06 | I11: =IF((E11+G11)>0,(E11+G11)/'Operational Data'!$G$23, "-") -> 0.02043102601
A12: 13 01 11 Synthetic Hydraulic Oil | C12: Augean | G12: ='Operational Data'!G38 -> 4 | I12: =IF((E12+G12)>0,(E12+G12)/'Operational Data'!$G$23, "-") -> 4.680486583e-05
A13: 13 02 05 mineral based , non-chlorinated engine oil | C13: LWOL | G13: ='Operational Data'!G39 -> 3.3 | I13: =IF((E13+G13)>0,(E13+G13)/'Operational Data'!$G$23, "-") -> 3.861401431e-05
A14: 13 05 03 interceptor sludge | C14: Augean | G14: ='Operational Data'!G40 -> 170.6
A15: 16 06 01 Lead acid batteries | C15: LWOL | G15: ='Operational Data'!G42 -> 0
A16: 19 12 11 other waste | C16: PCC | G16: ='Operational Data'!G44 -> 0.2
A17: 20 01 21 flourescent tubes | C17: Blackmore Ricotech | G17: ='Operational Data'!G46 -> 0.021
A18: 20 01 23 equipment containing CFC's (fridge) | C18: LWOL | G18: ='Operational Data'!G47 -> 0
A19: 20 01 35 WEEE | C19: Blackmore Ricotech | G19: ='Operational Data'!G48 -> 0.043
A20: Total Hazardous Waste | E20: =SUM(E11:F19) -> 0 | G20: =SUM(G11:H19) -> 1924.224 | I20: =IF((E20+G20)>0,(E20+G20)/'Operational Data'!$G$23, "-") -> 0.02251576154
A22: 2) Non-Hazardous Wastes
A23: 19 01 12 IBA | C23: Johnsons | G23: ='Operational Data'!G37 -> 17916.57 | I23: =IF((E23+G23)>0,(E23+G23)/'Operational Data'!$G$23, "-") -> 0.2096456638
A24: 15 01 06 mixed packaging | C24: PCC | G24: ='Operational Data'!G41 -> 0.04 | I24: =IF((E24+G24)>0,(E24+G24)/'Operational Data'!$G$23, "-") -> 4.680486583e-07
A25: 17 09 04 Mixed construction | C25: Bourne Skips | G25: ='Operational Data'!G43 -> 2.98 | I25: =IF((E25+G25)>0,(E25+G25)/'Operational Data'!$G$23, "-") -> 3.486962505e-05
A26: 19 12 12 other waste incl mixtures of materials | C26: Bourne Skips | G26: ='Operational Data'!G45 -> 326.24 | I26: =IF((E26+G26)>0,(E26+G26)/'Operational Data'!$G$23, "-") -> 0.003817404857
A27: 20 01 40 metal recycling | C27: Simms | G27: ='Operational Data'!G49 -> 53.8 | I27: =IF((E27+G27)>0,(E27+G27)/'Operational Data'!$G$23, "-") -> 0.0006295254455
A28: 20 03 01 mixed municiple | C28: PCC | G28: 1.6 | I28: =IF((E28+G28)>0,(E28+G28)/'Operational Data'!$G$23, "-") -> 1.872194633e-05
A29: Total Non-Hazardous Waste | E29: =SUM(E23:F27) -> 0 | G29: =SUM(G23:H28) -> 18301.23 | I29: =IF((E29+G29)>0,(E29+G29)/'Operational Data'!$G$23, "-") -> 0.2141466537
A30: TOTAL WASTE | E30: =+E29+E20 -> 0 | G30: =+G29+G20 -> 20225.454 | I30: =IF((E30+G30)>0,(E30+G30)/'Operational Data'!$G$23, "-") -> 0.2366624152
A32: Operator’s comments :
A37: =+A1 -> 2023 | B37: Annual Reporting of Water and Other Raw Material Usage
A38: Raw Material | E38: Usage | G38: Unit | H38: Specific Useage | J38: Unit
A39: Mains Water | E39: =+'Operational Data'!G55 -> 48628000 | G39: m3 | H39: =IF(E39>0,E39/'Operational Data'!$G$23,"-") -> 569.0067539 | J39: m3/te
A40: Total Water | E40: =+'Operational Data'!G56+'Operational Data'!G55 -> 49226072 | G40: m3 | H40: =IF(E40>0,E40/'Operational Data'!$G$23,"-") -> 576.0049239 | J40: m3/te
A41: Ammonia | E41: =+'Operational Data'!G57 -> 216236.57 | G41: kg | H41: =IF(E41>0,E41/'Operational Data'!$G$23,"-") -> 2.530230912 | J41: kg/te
A42: Activated Carbon | E42: =+'Operational Data'!G59 -> 30680 | G42: kg | H42: =IF(E42>0,E42/'Operational Data'!$G$23,"-") -> 0.3589933209 | J42: kg/te
A43: Lime | E43: =+'Operational Data'!G60 -> 1043830 | G43: kg | H43: =IF(E43>0,E43/'Operational Data'!$G$23,"-") -> 12.21408078 | J43: kg/te
A44: Combined fuel oil (Burners and plant use) | E44: =+'Operational Data'!G63 -> 0 | G44: lt | H44: =IF(E44>0,E44/'Operational Data'!$G$23,"-") -> - | J44: kg/te
A46: Operator’s comments :
A50: =+A37 -> 2023 | B50: Annual Reporting of other performance indicators
A51: Parameter | C51: Results by Line
C52: A1 | D52: A2 | E52: A3 | F52: A4 | G52: A5 | I52: Turbine 1 | J52: Turbine 2
A53: Operating hours for the year, hours | C53: ='Operational Data'!G66 -> 7755.36 | I53: ='Operational Data'!G67 -> 7357.87
A54: Number of periods of abnormal operation, qty. | C54: ='Operational Data'!G70 -> 5 | I54: ='Operational Data'!G70 -> 5
A55: Cumulative hours of abnormal operation for this year, hours | C55: ='Operational Data'!G71 -> 6.5 | I55: ='Operational Data'!G71 -> 6.5
A57: Operator’s comments :
A58: Q1 Jan 196.50 hours downtime for plant failure and 229.99 hours turbine tripped downtime. Q2 June 200.3 hours downtime for planned outage works on unavoidable failed plant. Q3 July 16.5 hours downtime to remedy blockage in riddling conveyor and 10.33 turbine unavailability. September 409.8 hours planned downtime for outage and 423.82 turbine offline. Q4 14.5 hours planned downtime. 1 x SO2 breach Notification 5 submitted.
A61: Signed: | B61: KDJones | G61: Date: | H61: 2024-01-26

Sheet Energy Form 1
A1: =+'Cover Page'!C39 -> 2023 | B1: Annual Reporting of Energy Usage/Export
A3: =+'Cover Page'!B31 -> Permit EPR/NP3638ZS | F3: Operator: | G3: =+'Cover Page'!B37:I37 -> 0
A5: Facility: | B5: =+'Cover Page'!B33:I33 -> Peterborough Energy Recovery Facility | F5: Form: | G5: Energy 1
A7: Reporting Period from: | D7: =+'Perf. Form 1'!D6:E6 -> 2023-01-01 | F7: to: | G7: =+'Perf. Form 1'!G6:H6 -> 2023-12-31
A9: Energy Source | D9: Energy Usage | F9: Unit | G9: Specific Useage (KWh/tonne incinerated
A10: Electricity Produced | D10: =+'Operational Data'!G26 -> 59549 | F10: MWh | G10: =+'Operational Data'!H26 -> 696.7957389
A11: Electricity Imported | D11: =+'Operational Data'!G29 -> 212.08 | F11: MWh | G11: =+'Operational Data'!H29 -> 2.481593987
A12: Electricity Exported | D12: =+'Operational Data'!G27 -> 52058 | F12: MWh | G12: =+'Operational Data'!H27 -> 609.1419264
A13: Furnace flame for burners | D13: =('Operational Data'!G61*0.85)/1000 -> 229.88335 | G13: =+'Operational Data'!G61 -> 270451
A14: White diesel for yellow plant and generator | D14: =('Operational Data'!G62*0.85)/1000 -> 62.04235 | F14: tonnes | G14: =+'Operational Data'!G62 -> 72991
A15: Steam/hot water exported | D15: n/a | F15: GWh | G15: =+'Operational Data'!H32 -> -
A16: Gas | D16: n/a | F16: litres
F17: litres
A19: Operator’s comments :
A20: These figures reflect non-production during offline hours totalling 929.05 for the year(incl the outage)
A30: Signed: | B30: KDJones | G30: Date: | H30: 2024-01-26

Sheet Permit Compliance
A1: =+'Cover Page'!$B$29 -> Annual Performance Report 2023 | E1: =+'Cover Page'!$B$33 -> Peterborough Energy Recovery Facility
A3: Summary of Permit Compliance
A5: Compliance with permit limits for continuously monitored pollutants
A7: The plant met its emission limits as shown in the table below:
A8: Substance | C8: Percentage time compliant during operationNote 1 | L8: Notes:
C9: Half-hourly limit | F9: Daily limit | L9: Note 1: Please report to 2 decimal places, i.e. xx.xx% Note 2: Please provide a brief summary of each notification or non-compliance in the table (rather than just referring to notifications that were sent to the Regulator), including stating the value of measured result for any ELV exceedances.
A10: Particulates | C10: xx.xx % | F10: xx.xx %
A11: Oxides of nitrogen | C11: xx.xx % | F11: xx.xx %
A12: Sulphur dioxide | C12: 99.99 | F12: xx.xx %
A13: Carbon monoxide | C13: xx.xx % or xx.xx% 95% of 10-min averages | F13: xx.xx %
A14: Total organic carbon | C14: xx.xx % | F14: xx.xx %
A15: Hydrogen chloride | C15: xx.xx % | F15: xx.xx %
A16: Hydrogen fluoride | C16: xx.xx % | F16: xx.xx %
C17: xx.xx % | F17: xx.xx %
A19: Summary of any notifications or non-compliances under the permit
A20: Date | B20: Summary of notification or non-compliance [including Line/Reference]Note 2 | E20: Reason | H20: Measures taken to prevent reoccurrence
A21: 2023-04-15 | B21: HCI limit 10mg/Nm3. CEM's reported a reading of 10.28.mg/Nm3 | E21: abnormal operations for 3 hours following a technically unavoidable failure of abatement - lime build up causing a blockage in the hose. | H21: New PPM to have the hoese stripped and cleaned very 13 weeks. And a change to a quick release system for speed and ease of task.
A22: 2023-06-05 | B22: SO2 limit - 200mg/Nm3/hour. Measured level was 200.3mg/Nm3 | E22: Abnormal operations for 1/2 hours following a technically unavoidable failure of abatement - lime screw reacted ,but the lime feed failed to pull through. | H22: bridging' took place in the silo. Manual bridge breaking to be included in shift changes as a preventative rather than a reactive.
A23: 2023-06-11 | B23: Dust limit - 10mg/Nm3. Measured level was 16.03nm/Nm3 | E23: following a technically unavoidable failur of abatesment in the fabric filter bag house 1 | H23: shut off fabric filter bag house 1 to undertake inspections and replace as necessary. Everyoutage the bag houses undergo an inspection. Iin the outage planned for 2023, all the bags will be replaced.
A24: 2023-06-14 | B24: HCI limit 10mg/Nm3. CEM's reported a reading of 11.03mg/Nm3 | E24: unavoidable failure of abatement. 1 of 3 water injector lances was not working properly and the water was not vapourising a it should , instead it was running to the bottom onf the conditining tower,ponding and then being drawn into the lime delivery hose, wetting the lime and it was 'setting' like mortar, narrowing the feed hose. | H24: All the atomisers were checked, the malfunctioning atomiser was replaced. All atomisers wil be replaced at the outage as a standard with the old ones being refurbished and added to critical spares.
A25: 2023-07-04 | B25: SO2 limit - 30 min average 200mg/Nm3/hour. Measured level was 246.2mg/Nm3 | E25: Abnormal operations for 1/2 hours following a technically unavoidable failure of abatement - lime screw reacted ,but the lime feed failed to pull through. | H25: This incident instigated a review of the response of the lime silo, lime screw andlime feed hose, which led us to find the abatement failure 05/06/2023, in addition to the 'bridge breaking' as a preventative, the lime silo content is to be closely monitored. Its thought that low levels may be in part adding to the problem.
A26: 2023-11-24 | B26: SO2 llimit - 30 min average 200mg/Nm3/hour. Measured level was 215mg/Nm3 | E26: Breached during the period 02:29 and 03:00 hours. | H26: Front end waste, undected quantities of plasterboard and high volumes of plastic.
A28: Summary of any complaints received and actions to taken to resolve them.
A29: Date | B29: Summary of complaint [including Line/Reference] | E29: Reason * | H29: Measures taken to prevent reoccurrence
B30: nil
E35: * including whether substantiated by the operator or the EA

Sheet Improvements
A1: =+'Cover Page'!$B$29 -> Annual Performance Report 2023 | E1: =+'Cover Page'!$B$33 -> Peterborough Energy Recovery Facility
A3: Summary of Plant Improvements
A5: Summary of any efficiency improvements that have been completed within the year.
A6: mid year 2022 to date;- Project 1.replace al sodium lights with 100w LED's. Complete. Project 2 Fluorescents on level 1(canteen and EC&I office. Complete. Project 3. operational plant repalce fluorescens with LED's s theyexpire- ongoing, approx around 10% completed. Project 100% completion by 31/03/2024 Financial savings to date estimated around £10k in the 12 months. Energy saving to date estimated around 86,000,000 watts/year ongoing .
A16: Summary of any permit improvement conditions that have been completed within the year and the resulting environmental benefits.
A17: Improvement requirements IC1 CAR for extension for submission. NOx trials. scheduled:- Trial1 16- 22 Oct, Trial2 23-29 Oct, Trial3 30 Oct - 5 Nov. IC2 & IC3 Mercury & Dioxin report submitted. 6 sets of triplicate mercury analysis have been completed:- 8/10/21, 05/4/22, 24/10/22, 28/10/22, 17/04/23, 02/05/23 November IC1 improvement condition for report following NOx trials submitted and OTNOC Managment plan V1 also submitted.
A27: Summary of any changes to the plant or operating techniques which required a variation to the permit and a summary of the resulting environmental impact.
A28: nil
A38: Summary of any other improvements made to the plant or planned to be made and a summary of the resulting environmental benefits.
A39: nil

Sheet Public Liasion
A1: =+'Cover Page'!$B$29 -> Annual Performance Report 2023 | E1: =+'Cover Page'!$B$33 -> Peterborough Energy Recovery Facility
A3: Details of Public & Stakeholder Liasion
A5: Summary of events held during the reporting year.
A6: Date | C6: Description
A7: Bi Monthly | C7: client liaisons with peterborough City Council
A9: Planned visits for April and November and as requested. | C9: Heritage open days for general public.. Organised school/college tours.
A11: Quarterly | C11: Viridor in Peterborough Meetings for the Viridor in Peterborough community fund - funding local projects based around sustainability, local need, community involvement, value for money and education
C13: We will hold community liaison meetings on request after no attendance by local companies or residents since August 2016.
A16: List of events planned for next year
A17: Date | C17: Description
A18: JAN - MARCH | C18: The visitor Centre welcomed 19 separate visits from schools and colleges and group members of the public. The visits wil continue into the year. The Education & Afmin Support Officer is looking into VR availability for persons who are not able to participate in site 'walk rounds'. | J18: Outreach
A20: APRIL - JUNE | C20: Scheduled visits from business's including Railworld and Central Rail Systems Alliance for full plant tours.
A22: JULY | C22: 5th & 6th - school visit. 20th July PCC full plant tour. 25th Community visit.
A24: AUGUST | C24: 4th WPS compliance consulting- full plant tour. 9th Community visit
A26: SEPTEMBER | C26: outage- no visits planned
A28: OCTOBER | C28: 10th St Ives Rotary, 4th Veolia, 11th & 12th Biffa | J28: 18th PCC recycle week.
C29: 11th PCC Education officer
A30: NOVEMBER | C30: 1st Community visit, 8th PCC, 20th Werington Scouts | J30: 28th Hampton Lakes School
A32: DECEMBER | J32: 12th ARU
J33: 13th GPTUC
A36: If you wish to be involved in the public liasion programme, please contact Hayley Janceski hjanceski@viridor.co.uk tel/ 07880 299 734

Sheet Residue Quality
A1: ut | E1: =+'Cover Page'!$B$33 -> Peterborough Energy Recovery Facility
A3: Residue Quality Monitoring Requirements
A5: Summary of monitoring undertaken and compliance
A6: IBA undergoes quarterly sampling as required by permit condition 3.5.1c and table 3.5 including TOC, dioxins & furans. TOC has a limit of <3%.
A8: 24 samples of IBA are taken each year (including the 4 permit complaince samples) to undergo basic hazard analysis as required by the ESA protocol.
A10: APCr is sampled quarterly as per permit condition 3.5.1c and table 3.5
A13: Commentary on any specific events
A14: Date & Event | C14: Description
A15: 3 - 19th Sept 2023 | C15: Outage
A17: 16 -22 Oct, 23-29 Oct, 30 Oct-5 Nov | C17: 3 NOx trials as per the permit requirement. Report submitted 29 Novemeber 2023
A27: Residue Quality Monitoring Results
A28: Parameter (unit) | C28: Limit | D28: Normal Operation
D29: Bottom ash | F29: APC Residues
A30: Loss on Ignition (average %) | C30: <5% | D30: n/a
A31: Total Organic Carbon (average %) | C31: <3% | D31: 0.3
A32: No. of Assessments Undertaken | C32: --- | D32: 1 permit compliance 6 ESA hazard assessments. Multiple TKN and Ammonicacal assessments for the Nox trials. | F32: Multiple TKN and Ammonicacal assessments for the Nox trials.
A33: No. of Hazardous Results | C33: --- | D33: nil
A35: Comments :

Sheet CO2 N2O
A1: =+'Cover Page'!$B$29 -> Annual Performance Report 2023 | C1: =+'Cover Page'!$B$33 -> Peterborough Energy Recovery Facility
A3: Carbon dioxide emissions and biogenic content of waste inputs | F3: Notes:
A5: Carbon dioxide emissions (all types of plant)
B6: Annual mass of carbon dioxide released | C6: tonnes | D6: 96363.8 | F6: Q1 - 23,127.6 Q2 - 20,330 Q3 - 20,852 Q4-32054.8
B7: Annual mass of carbon dioxide released per tonne of waste burned | C7: t CO2 / t waste | D7: 1.1 | F7: Q1 1.055 Q2 - 0.923 Q3 1.06 Q4 1.1
B8: Annual mass of carbon dioxide released per MWh of energy exported | C8: t CO2 / MWh export | D8: 1.99 | F8: Q1 - 1.56 Q2 - 1.54 Q3 - 1.5 Q4 - 1.8
B9: Description of how annual carbon dioxide mass emission has been calculated. See Note 1 | C9: Annual mass of Carbon Dioxide release – CO2 Avg. Concentration for month x 19.6 x Avg. Flow rate for month (m3/hr) / 1000 / 1000 x Burn hours + For each month within the year = Total Mass of CO2 for year. Examle January 2023: 14.04% x 19.6 = 275.184 275.184 x 45465.25 = 12,511,309.35 112,511,309.35 / 1000 / 1000 = 12.51130 tons of CO2 per hour 12.511 x 547.5(hours in the month - downtime of 196.5 hours) = 6,849.772 Annual mass of Carbon Dioxide release per tonne of waste burned – Example January 2023: 6849.772/6017 (tonnes of waste processed in January) = 1.13840319. | F9: Note 1: Where available, data from CO2 CEMS should be used. Otherwise, only where no CEMS data is available, a suitable emissions factor should be used based on the tonnage of waste burned e.g.0.942 tCO2/t waste as per Tolvik report 2022, or other justified emissions factor - refer to embedded Environment Agency guidance note above or updated version for suitable descriptive text.
A10: Nitrous oxide emissions (only plants which use ammonia or urea to abate NOx emissions)
B11: Annual mass emissions of nitrous oxide | C11: tonnes N2O | D11: 0.07 | F11: Q1 - 0.068 Q2 - 0.063 Q3-0.075 Q4-0.075
B12: Description of how annual nitrous oxide mass emission has been calculated See Note 2 | C12: When calculating the mass ofpollutants relased, the concentration of the gas is multipled by the flue as flow rate to produce a value interms of mg/hour or second. A factor is held withing the software to convert this to a measurement of Kg/hr, thi sis held within the GroupCFG.db as the 2 Flow x" variable and may be set individually for each measurement point. Depending upon the units of flow measurement- the following factors are typcial m3/hour - factor = 1E-6(0.000001) or m3/s - Factor = 3.6x 10-3(0.0036). In all calculations, a negative flue gas is set to zero. This is to prevent a negative offset on teh flow mwasurement from erroneously reducing the mass emissions over a long period. We then multiply the mg/hour by the number of burns hours to produce the total mass for the pollutant. NOx Emissions Total annual mass emissions of Nitrous Oxide NOx Avg. Concentration for month x Avg. Flow rate for month (m3/hr) / 1,000,000 Example January 2023: 116.7 x 45465.25 = 5,305,794.675 5,305,794.675 / 1,000,000 = 5.305794675kg per hour 5.305794675 x 547.5 = 2,907.225kg. Convert to Tonnes. 2,907.225/1000 = 2.907225 | F12: Note 2: Where available, data from N2O CEMS should be used. If no CEMS data is available, from periodic monitoring. Otherwise, a suitable emissions factor should be used based on the tonnage of waste burned e.g. 0.0981 kgN20/t waste as per 2021 Pollution Inventory data for plants with urea-based SNCR - refer to embedded Environment Agency guidance note above or updated version for suitable descriptive text.
A13: Total annual carbon dioxide and nitrous oxide emissions. See Note 3. | C13: tonnes CO2e | D13: 96427.3 | E13: Q1 mass of N2O 20,120.96kg/1000 = 20.12T + 23,127.6T(of Co2)= 23,147.72T Q2 mass of N2O 18,648.84kg/1000=18.65T + 20,330.0 T(of Co2) 20,348.65T Q3 mass of N2O 22379.8 kg/1000 = 22.40T +20,852T (of CO2) =20,865.45T Q4 mass of N2O 22454.3 kg/1000 = 22.50 + 32054.8 T(of CO2) = 32,076.5T | F13: Note 3: Total annual carbon dioxide and nitrous oxide emissions reported as carbon dioxide equivalent where 1 tonne nitrous oxide is equivalent to 298 tonne carbon dioxide
A14: Biogenic CO2 emissions (See Note 4) | F14: Note 4: Only plants combusting residual municipal waste, refuse derived fuel or solid recovered fuel
B15: Percentage of total carbon dioxide emissions arising from biogenic waste | C15: % | D15: 0.457
B16: No. of measurements undertaken | C16: Number | D16: 1
B17: Description of how percentage biogenic carbon dioxide emissions have been measured or calculated. See Note 5 | C17: The method used for determining biomass is the selective dissolution method as defined in BS EN ISO 21644:2021. This method involves treatment of the sample with concentrated sulphuric acid and hydrogen peroxide. Generally, the biomass in the sample will selectively dissolve leaving a non-biomass residue. The original mass of sample and mass of residue are measured. The result is calculated from the mass values and the ash content to give a result in %. | F17: Note 5: Examples include direct measurement via C14 method or BIOMA software - refer to embedded Environment Agency guidance note above or updated version for suitable descriptive text, quoting standards where relevant. Otherwise, as an approximation (and in lieu of any more accurate metrics which may be developed in future), the measured or estimated biogenic fraction by net calorific value can be assumed to be the same as the biogenic CO2 fraction of the total CO2 emissions from the plant.
A18: Biogenic fraction of waste feedstock (See Note 4)
B19: Yearly average biogenic percentage of the waste by net calorific value (NCV) | C19: %
B20: If sampling undertaken, no. of samples used to ascertain average biogenic % above | C20: Number | D20: 1
B21: Description of how biogenic percentage (by NCV) has been calculated or estimated. See Note 6 | C21: The method used for determining biomass is the selective dissolution method as defined in BS EN ISO 21644:2021. This method involves treatment of the sample with concentrated sulphuric acid and hydrogen peroxide. Generally, the biomass in the sample will selectively dissolve leaving a non-biomass residue. The original mass of sample and mass of residue are measured. The result is calculated from the mass values and the ash content to give a result in %. | F21: Note 6: Where available, data from waste sampling should be used; otherwise, an estimated figure with justification can be used, or a figure assumed on the basis of a national average e.g. 2017 WRAP data for residual waste of 51.8% biogenic energy content - refer to embedded Environment Agency guidance note above or updated version for suitable descriptive text, quoting standards where relevant.
B23: Comments:

Sheet Water
A1: =+'Cover Page'!$B$29 -> Annual Performance Report 2023 | E1: =+'Cover Page'!$B$33 -> Peterborough Energy Recovery Facility
A3: Emissions to Water
A5: Summary of monitoring undertaken and compliance
A6: Samples and visual checks undertaken monthly. The Penstocks remains closed unless otherwise directed.
A8: Qtr PPM operational checks on the penstock gate valves.
A13: Commentary on any specific events
A14: Date & Event | C14: Description
A22: Emissions to Water / Sewer
A23: Parameter | D23: Monitoring Frequency | F23: Limit | G23: Target | H23: Max. | I23: Average
A24: PBERFS1 to combined sewer | D24: monthly | F24: >50mg/l
A25: PBERFW1 to watercourse | D25: monthly | F25: >1000mg/l

Sheet Air (periodic)
A1: =+'Cover Page'!$B$29 -> Annual Performance Report 2023 | E1: =+'Cover Page'!$B$33 -> Peterborough Energy Recovery Facility
A3: Emissions to Air (periodically monitored)
A5: Summary of monitoring undertaken, standards used and compliance | K5: Notes:
K6: Template may require adjustment for any bespoke monitoring requirements of permit - please also check that all default ELV values, reference periods and the stated oxygen reference value match those for your plant, and edit if necessary!
A9: Results of emissions to air that are periodically monitored - oxygen reference 6%
A10: Substance | C10: Ref. Period | D10: Emission Limit Value* | F10: Average | K10: User to add additional tables as necessary, depending on whether quarterly or bi-annual reporting is required for the compliance year
F11: A1 | G11: A2 | H11: A3 | I11: A4 | J11: A5
A12: Hydrogen fluoride | C12: 1 hr | D12: 2 mg/m3 | F12: 0.13 | G12: <0.02
A13: Cd and Th and their compounds | C13: 0.5-8hrs | D13: 0.05 mg/m3 | F13: 0.0015 | G13: 0.001
A14: Hg and its compounds | C14: 0.5-8hrs | D14: 0.05 mg/m3 | F14: 0.001 | G14: 0.026 | K14: * Denotes limits that were in force until 2 December 2023; from 3 December 2023 the following new limits applied (those not listed remained unchanged):
A15: Sb, As, Pb, Cr, Co, Cu, Mn, Ni, V and their compounds | C15: 0.5-8hrs | D15: 0.5 mg/m3 | F15: 0.31 | G15: 0.03
A16: Dioxins & Furans (I-TEQ) | C16: 6-8hrs | D16: 0.1 ng/m3 | F16: 0.0015 | G16: 0.0014 | K16: Substance | L16: Reference Period | M16: Emission Limit Value
A17: PCBs (WHO-TEQ Humans / Mammals) | C17: 6-8hrs | D17: None set ng/m3 | F17: 0.00018 | G17: 0.00015
A18: PCBs (WHO-TEQ Fish) | C18: 6-8hrs | D18: None set ng/m3 | F18: 1.5e-05 | G18: 1e-05 | K18: Hydrogen fluoride | L18: Average of three consecutive measurements of at least 30 minutes each | M18: 1 mg/m3
A19: PCBs (WHO-TEQ Birds) | C19: 6-8hrs | D19: None set ng/m3 | F19: 0.00082 | G19: 0.00323 | K19: Cd and Th and their compounds | L19: Average of three consecutive measurements of at least 30 minutes each | M19: 0.02 mg/m3
A20: Dioxins & Furans (WHO-TEQ Humans / Mammals) | C20: 6-8hrs | D20: None set ng/m3 | F20: 0.0015 - 0.0016 | G20: 0.0014 - 0.0014 | K20: Hg and its compounds | L20: Average of three consecutive measurements of at least 30 minutes each | M20: 0.02 mg/m3
A21: Dioxins & Furans (WHO-TEQ Fish) | C21: 6-8hrs | D21: None set ng/m3 | F21: 0.0016 - 0.0017 | G21: 0.0013 - 0.0014 | K21: Sb, As, Pb, Cr, Co, Cu, Mn, Ni, V and their compounds | L21: Average of three consecutive measurements of at least 30 minutes each | M21: 0.3 mg/m3
A22: Dioxins & Furans (WHO-TEQ Birds) | C22: 6-8hrs | D22: None set ng/m3 | F22: 0.0023 - 0.0024 | G22: 0.0035 - 0.0036 | K22: Dioxins & Furans (I-TEQ) | L22: 6-8hrs | M22: 0.06 ng/m3
A23: Anthanthrene | C23: 6-8hrs | D23: None set µg/m3 | F23: 0 | G23: 0
A24: Benzo(a)anthracene | C24: 6-8hrs | D24: None set µg/m3 | F24: 0 | G24: 0
A25: Benzo(a)pyrene | C25: 6-8hrs | D25: None set µg/m3 | F25: 0.01 | G25: 0.01
A26: Benzo(b)fluoranthene | C26: 6-8hrs | D26: None set µg/m3 | F26: 0 | G26: 0
A27: Benzo(b)naptho(2,1-d) thiophene | C27: 6-8hrs | D27: None set µg/m3 | F27: 0 | G27: 0
A28: Benzo(c)phenanthrene | C28: 6-8hrs | D28: None set µg/m3 | F28: <0.0018 | G28: <0.0018
A29: Benzo(ghi)perylene | C29: 6-8hrs | D29: None set µg/m3 | F29: 0.03 | G29: 0.03
A30: Benzo(k)fluoranthene | C30: 6-8hrs | D30: None set µg/m3 | F30: 0 | G30: 0
A31: Cholanthrene | C31: 6-8hrs | D31: None set µg/m3 | F31: <0.0018 | G31: <0.0018
A32: Chrysene | C32: 6-8hrs | D32: None set µg/m3 | F32: 0.01 | G32: 0.01
A33: Cyclopenta(cd)pyrene | C33: 6-8hrs | D33: None set µg/m3 | F33: <0.0018 | G33: <0.0018
A34: Dibenzo(ai)pyrene | C34: 6-8hrs | D34: None set µg/m3 | F34: <0.0018 | G34: <0.0018
A35: Dibenzo(ah)anthracene | C35: 6-8hrs | D35: None set µg/m3 | F35: <0.0018 | G35: <0.0018
A36: Fluoranthene | C36: 6-8hrs | D36: None set µg/m3 | F36: 0.08 | G36: 0.08
A37: Indeno(123-cd) pyrene | C37: 6-8hrs | D37: None set µg/m3 | F37: 0.01 | G37: 0.01
A38: Naphthalene | C38: 6-8hrs | D38: None set µg/m3 | F38: 0.16 | G38: 0.16
A39: Comments :

Sheet Air (CEMS)
A1: =+'Cover Page'!$B$29 -> Annual Performance Report 2023 | I1: =+'Cover Page'!$B$33 -> Peterborough Energy Recovery Facility
A3: Emissions to Air (continously monitored)
N4: Notes:
A5: Summary of monitoring undertaken, standards used and compliance | N5: Template may require adjustment for any bespoke monitoring requirements of permit
N6: Please check that all default ELV values match those for your plant and edit if necessary!
N7: Report to 1 decimal place
A11: Results of emissions to air that are continuously monitored (maximum and average values for each line) - oxygen reference 11%
A12: Substance | B12: Reference Period | C12: Emission Limit Value** | D12: A1 | F12: A2 | H12: A3 | J12: A4 | L12: year
D13: Max. | E13: Avg. | F13: Max. | G13: Avg. | H13: Max. | I13: Avg. | J13: Max. | K13: Avg. | L13: Max. | M13: Avg. | N13: ** Denotes limits that were in force until 2 December 2023; from 3 December 2023 the following new limits applied (those not listed remained unchanged):
A14: Oxides of nitrogen | B14: Daily mean | C14: 200 mg/m3 | D14: =MAX(NOx!O7:O9) -> 124.8 | E14: =AVERAGE(NOx!N7:N9) -> 116.4333333 | F14: =MAX(NOx!O10:O12) -> 127.4 | G14: =AVERAGE(NOx!N10:N12) -> 114.1333333 | H14: =MAX(NOx!O13:O15) -> 120 | I14: =AVERAGE(NOx!N13:N15) -> 105.4 | J14: =MAX(NOx!O16:O18) -> 122.5 | K14: =AVERAGE(NOx!N16:N18) -> 105.5 | L14: =NOx!O19 -> 127.4 | M14: =NOx!N19 -> 110.3666667
B15: ½ hourly mean | C15: 400 mg/m3 | D15: =MAX(NOx!M7:M9) -> 173.2 | E15: =AVERAGE(NOx!L7:L9) -> 116.4666667 | F15: =MAX(NOx!M10:M12) -> 268.4 | G15: =AVERAGE(NOx!L10:L12) -> 113.9666667 | H15: =MAX(NOx!M13:M15) -> 218.7 | I15: =AVERAGE(NOx!L13:L15) -> 105.5 | J15: =MAX(NOx!M16:M18) -> 199 | K15: =AVERAGE(NOx!L16:L18) -> 105.5333333 | L15: =NOx!M19 -> 268.4 | M15: =NOx!L19 -> 110.3666667 | N15: Substance | O15: Reference Period | P15: Emission Limit Value
A16: Particulates | B16: Daily mean | C16: 10 mg/m3 | D16: =MAX(Particulates!O7:O9) -> 8.7 | E16: =AVERAGE(Particulates!N7:N9) -> 4 | F16: =MAX(Particulates!O10:O12) -> 9.3 | G16: =AVERAGE(Particulates!N10:N13) -> 2.6 | H16: =MAX(Particulates!O13:O15) -> 5.2 | I16: =AVERAGE(Particulates!N10:N13) -> 2.6 | J16: =MAX(Particulates!O16:O18) -> 3.1 | K16: =AVERAGE(Particulates!N10:N13) -> 2.6 | L16: =Particulates!O19 -> 9.3 | M16: =Particulates!N19 -> 2.075
B17: ½ hourly mean | C17: 30 mg/m3 | D17: =MAX(Particulates!M7:M9) -> 19.7 | E17: =AVERAGE(Particulates!L7:L9) -> 4.066666667 | F17: =MAX(Particulates!M10:M12) -> 33.8 | G17: =AVERAGE(Particulates!L10:L12) -> 3.166666667 | H17: =MAX(Particulates!M13:M15) -> 24.4 | I17: =AVERAGE(Particulates!L13:L15) -> 0.6333333333 | J17: =MAX(Particulates!M16:M18) -> 10.6 | K17: =AVERAGE(Particulates!L16:L18) -> 0.7666666667 | L17: =Particulates!M19 -> 33.8 | M17: =Particulates!L19 -> 2.158333333 | N17: Oxides of nitrogen | O17: Daily mean | P17: 180 mg/m3
A18: Total Organic Carbon | B18: Daily mean | C18: 10 mg/m3 | D18: =MAX(TOC!O7:O9) -> 0.8 | E18: =AVERAGE(TOC!L7:L9) -> 0.4333333333 | F18: =MAX(TOC!O10:O12) -> 0.6 | G18: =AVERAGE(TOC!L10:L12) -> 0.4 | H18: =MAX(TOC!O13:O15) -> 1.1 | I18: =AVERAGE(TOC!L13:L15) -> 0.4666666667 | J18: =MAX(TOC!O16:O18) -> 0.7 | K18: =AVERAGE(TOC!L16:L18) -> 0.5 | L18: =TOC!O19 -> 1.1 | M18: =TOC!N19 -> 0.4083333333 | N18: Particulates | O18: Daily mean | P18: 5 mg/m3
B19: ½ hourly mean | C19: 20 mg/m3 | D19: =MAX(TOC!M7:M9) -> 11.1 | E19: =AVERAGE(TOC!L7:L9) -> 0.4333333333 | F19: =MAX(TOC!M10:M12) -> 3.3 | G19: =AVERAGE(TOC!L10:L11) -> 0.4 | H19: =MAX(TOC!M13:M15) -> 11.4 | I19: =AVERAGE(TOC!L12:L15) -> 0.45 | J19: =MAX(TOC!M16:M18) -> 3.3 | K19: =AVERAGE(TOC!L16:L18) -> 0.5 | L19: =TOC!M19 -> 11.4 | M19: =TOC!L19 -> 0.45 | N19: Hydrogen chloride | O19: Daily mean | P19: 8 mg/m3
A20: Hydrogen chloride | B20: Daily mean | C20: 10 mg/m3 | D20: =MAX(HCl!O7:O9) -> 7.8 | E20: =AVERAGE(HCl!N7:N9) -> 5.9 | F20: =MAX(HCl!O10:O12) -> 10.3 | G20: =AVERAGE(HCl!N10:N12) -> 5.766666667 | H20: =MAX(HCl!O13:O15) -> 8.3 | I20: =AVERAGE(HCl!N13:N15) -> 5.666666667 | J20: =MAX(HCl!O16:O18) -> 7.8 | K20: =AVERAGE(HCl!N16:N18) -> 5.366666667 | L20: =HCl!O19 -> 10.3 | M20: =HCl!N19 -> 5.675 | N20: Sulphur dioxide | O20: Daily mean | P20: 40 mg/m3
B21: ½ hourly mean | C21: 60 mg/m3 | D21: =MAX(HCl!M7:M9) -> 15.1 | E21: =AVERAGE(HCl!L7:L9) -> 5.933333333 | F21: =MAX(HCl!M10:M12) -> 64 | G21: =AVERAGE(HCl!L10:L12) -> 5.866666667 | H21: =MAX(HCl!M13:M15) -> 53.6 | I21: =AVERAGE(HCl!L13:L15) -> 5.733333333 | J21: =MAX(HCl!M16:M18) -> 38.5 | K21: =AVERAGE(HCl!L16:L18) -> 5.4 | L21: =HCl!M19 -> 64 | M21: =HCl!L19 -> 5.733333333 | N21: Ammonia | O21: Daily mean | P21: 15 mg/m3
A22: Sulphur dioxide | B22: Daily mean | C22: 50 mg/m3 | D22: =MAX('SO2'!O7:O9) -> 33.5 | E22: =AVERAGE('SO2'!N7:N9) -> 25.4 | F22: =MAX('SO2'!O10:O12) -> 38.6 | G22: =AVERAGE('SO2'!N10:N12) -> 24.06666667 | H22: =MAX('SO2'!O13:O15) -> 32.7 | I22: =AVERAGE('SO2'!N13:N15) -> 22.66666667 | J22: =MAX('SO2'!O16:O18) -> 46.3 | K22: =AVERAGE('SO2'!N16:N18) -> 25.2 | L22: ='SO2'!O19 -> 46.3 | M22: ='SO2'!N19 -> 24.33333333
B23: ½ hourly mean | C23: 200 mg/m3 | D23: =MAX('SO2'!M7:M9) -> 132.5 | E23: =AVERAGE('SO2'!L7:L9) -> 25.43333333 | F23: =MAX('SO2'!M10:M12) -> 203.4 | G23: =AVERAGE('SO2'!L10:L12) -> 24.26666667 | H23: =MAX('SO2'!M13:M15) -> 246.2 | I23: =AVERAGE('SO2'!L13:L15) -> 22.96666667 | J23: =MAX('SO2'!M16:M18) -> 215.2 | K23: =AVERAGE('SO2'!L16:L18) -> 25.26666667 | L23: ='SO2'!M19 -> 246.2 | M23: ='SO2'!L19 -> 24.48333333
A24: Carbon monoxide | B24: Daily mean | C24: 50 mg/m3 | D24: =MAX('CO 95% 10 min'!Q10:Q12) -> 4.8 | E24: =AVERAGE('CO 95% 10 min'!P10:P12) -> 2.5 | F24: =MAX('CO 95% 10 min'!Q13:Q15) -> 5.3 | G24: =AVERAGE('CO 95% 10 min'!P13:P15) -> 2.5 | H24: =MAX('CO 95% 10 min'!Q16:Q18) -> 5.6 | I24: =AVERAGE('CO 95% 10 min'!P16:P18) -> 2.733333333 | J24: =MAX('CO 95% 10 min'!Q19:Q21) -> 4.5 | K24: =AVERAGE('CO 95% 10 min'!P19:P21) -> 2.433333333 | L24: ='CO 95% 10 min'!Q22 -> 5.6 | M24: ='CO 95% 10 min'!P22 -> 2.541666667
B25: ½ hourly mean * | C25: 100 mg/m3 * | D25: =MAX('CO 0.5 hourly'!L10:L12) -> 2.7 | E25: =AVERAGE('CO 0.5 hourly'!M10:M12) -> 74.96666667 | F25: =MAX('CO 0.5 hourly'!L13:L14) -> 2.6 | G25: =AVERAGE('CO 0.5 hourly'!M13:M15) -> 74.4 | H25: =MAX('CO 0.5 hourly'!L16:L18) -> 3.7 | I25: =AVERAGE('CO 0.5 hourly'!M16:M18) -> 104.7 | J25: =MAX('CO 0.5 hourly'!L19:L21) -> 2.6 | K25: =AVERAGE('CO 0.5 hourly'!M19:M21) -> 53.76666667 | L25: ='CO 0.5 hourly'!L22 -> 2.616666667 | M25: ='CO 0.5 hourly'!M22 -> 129.6
B26: 95%ile 10-min avg * | C26: 150 mg/m3 * | D26: =MAX('CO 95% 10 min'!M10:M12) -> 19.3 | E26: =AVERAGE('CO 95% 10 min'!N10:N12) -> 2.5 | F26: =MAX('CO 95% 10 min'!M13:M15) -> 7.3 | G26: =AVERAGE('CO 95% 10 min'!N13:N15) -> 2.566666667 | H26: =MAX('CO 95% 10 min'!M16:M18) -> 30.4 | I26: =AVERAGE('CO 95% 10 min'!N16:N18) -> 2.933333333 | J26: =MAX('CO 95% 10 min'!M19:M21) -> 11.9 | K26: =AVERAGE('CO 95% 10 min'!N19:N21) -> 2.466666667 | L26: ='CO 95% 10 min'!M22 -> 12.51666667 | M26: ='CO 95% 10 min'!N22 -> 2.616666667
A27: Ammonia | B27: Daily mean | C27: No limit set until 03/12/23 | D27: =MAX('NH3'!O7:O9) -> 16 | E27: =AVERAGE('NH3'!N7:N9) -> 4.866666667 | F27: =MAX('NH3'!O10:O12) -> 22.7 | G27: =AVERAGE('NH3'!N10:N12) -> 7.766666667 | H27: =MAX('NH3'!O13:O15) -> 28.6 | I27: =AVERAGE('NH3'!N13:N15) -> 10.56666667 | J27: =MAX('NH3'!O16:O18) -> 3.7 | K27: =AVERAGE('NH3'!N16:N18) -> 1.4 | L27: ='NH3'!O19 -> 28.6 | M27: ='NH3'!N19 -> 6.15
A28: ** = delete as appropriate, depending on whether your plant has half-horly or 10-min CO ELVs
A29: Comments :

Sheet HCl
A1: =+'Cover Page'!$B$29 -> Annual Performance Report 2023 | E1: =+'Cover Page'!$B$33 -> Peterborough Energy Recovery Facility
A3: Monitoring of Hydrogen Chloride emissions | D3: Whole Installation | G3: See Notes in Cell Q3 | J3: =+A3 -> Monitoring of Hydrogen Chloride emissions | N3: Per Combustion Line | Q3: Notes:
Q4: User to add logic to complete Whole installation, Table A5:G18. From the data in Per Combustion Line, Table J6:O79, subject to No. of lines installed
A5: mg/Nm3 | B5: 1/2 Hourly Reference Periods | E5: Daily Reference Periods
A6: =+'Cover Page'!C39 -> 2023 | B6: 1/2 hourly HCl ELV | C6: Monthly 1/2 hourly mean | D6: Highest 1/2 hourly maximum | E6: Daily HCl ELV* | F6: Monthly daily mean | G6: Highest daily maximum | J6: =+A6 -> 2023 | K6: mg/Nm3 | L6: Monthly 1/2 hourly mean | M6: Monthly 1/2 hourly maximum | N6: Monthly daily mean | O6: Monthly daily maximum
A7: Jan | B7: 60 | C7: =L7 -> 5.1 | D7: =M7 -> 15.1 | E7: 10 | F7: =N7 -> 5.1 | G7: =O7 -> 7 | J7: A1 | K7: Jan | L7: 5.1 | M7: 15.1 | N7: 5.1 | O7: 7
A8: Feb | B8: 60 | C8: =L8 -> 6.1 | D8: =M8 -> 13.8 | E8: 10 | F8: =N8 -> 6.1 | G8: =O8 -> 7.7 | K8: Feb | L8: 6.1 | M8: 13.8 | N8: 6.1 | O8: 7.7
A9: Mar | B9: 60 | C9: 6.6 | D9: 13.8 | E9: 10 | F9: 6.5 | G9: 7.8 | K9: Mar | L9: 6.6 | M9: 13.8 | N9: 6.5 | O9: 7.8 | Q9: Whole Installation table A5:G18:
A10: Apr | B10: 60 | C10: 6.2 | D10: 44 | E10: 10 | F10: 6.2 | G10: 10.3 | K10: Apr | L10: 6.2 | M10: 44 | N10: 6.2 | O10: 10.3 | Q10: Mean: for 1/2 hourly and daily periods calculate mean of values across all operational combustion lines for the month
A11: May | B11: 60 | C11: 7 | D11: 14.7 | E11: 10 | F11: 7 | G11: 8.1 | K11: May | L11: 7 | M11: 14.7 | N11: 7 | O11: 8.1
A12: Jun | B12: 60 | C12: 4.4 | D12: 64 | E12: 10 | F12: 4.1 | G12: 6.5 | K12: Jun | L12: 4.4 | M12: 64 | N12: 4.1 | O12: 6.5
A13: Jul | B13: 60 | C13: 5.7 | D13: 42.8 | E13: 10 | F13: 5.8 | G13: 7.6 | K13: Jul | L13: 5.7 | M13: 42.8 | N13: 5.8 | O13: 7.6 | Q13: Maximum: for 1/2 hourly and daily periods use the highest value across all operational combustion lines for the month
A14: Aug | B14: 60 | C14: 6.7 | D14: 19.1 | E14: 10 | F14: 6.7 | G14: 8.3 | K14: Aug | L14: 6.7 | M14: 19.1 | N14: 6.7 | O14: 8.3
A15: Sep | B15: 60 | C15: 4.8 | D15: 53.6 | E15: 10 | F15: 4.5 | G15: 7.6 | K15: Sep | L15: 4.8 | M15: 53.6 | N15: 4.5 | O15: 7.6
A16: Oct | B16: 60 | C16: 5.6 | D16: 26.6 | E16: 10 | F16: 5.5 | G16: 7.8 | K16: Oct | L16: 5.6 | M16: 26.6 | N16: 5.5 | O16: 7.8
A17: Nov | B17: 60 | C17: 4.8 | D17: 38.5 | E17: 10 | F17: 4.8 | G17: 7.3 | K17: Nov | L17: 4.8 | M17: 38.5 | N17: 4.8 | O17: 7.3
A18: Dec | B18: 60 | C18: 5.8 | D18: 24.5 | E18: 8 | F18: 5.8 | G18: 7 | K18: Dec | L18: 5.8 | M18: 24.5 | N18: 5.8 | O18: 7
E19: * ELV reduced to 8 mg/Nm3 on 3 December 2023 | K19: Annual | L19: =AVERAGE(L7:L18) -> 5.733333333 | M19: =MAX(M7:M18) -> 64 | N19: =AVERAGE(N7:N18) -> 5.675 | O19: =MAX(O7:O18) -> 10.3
J21: =+A6 -> 2023 | K21: mg/Nm3 | L21: Monthly 1/2 hourly mean | M21: Monthly 1/2 hourly maximum | N21: Monthly daily mean | O21: Monthly daily maximum
J22: A2 | K22: Jan
K23: Feb
K24: Mar
K25: Apr
K26: May
K27: Jun
K28: Jul
K29: Aug
K30: Sep
K31: Oct
K32: Nov
K33: Dec
K34: Annual | L34: =AVERAGE(L22:L33) ->  | M34: =MAX(M22:M33) -> 0 | N34: =AVERAGE(N22:N33) ->  | O34: =MAX(O22:O33) -> 0
J36: =+A6 -> 2023 | K36: mg/Nm3 | L36: Monthly 1/2 hourly mean | M36: Monthly 1/2 hourly maximum | N36: Monthly daily mean | O36: Monthly daily maximum
J37: A3 | K37: Jan
K38: Feb
K39: Mar
K40: Apr
K41: May
K42: Jun
K43: Jul
K44: Aug
K45: Sep
K46: Oct
K47: Nov
A48: Comments : | K48: Dec
K49: Annual | L49: =AVERAGE(L37:L48) ->  | M49: =MAX(M37:M48) -> 0 | N49: =AVERAGE(N37:N48) ->  | O49: =MAX(O37:O48) -> 0
J51: =+A6 -> 2023 | K51: mg/Nm3 | L51: Monthly 1/2 hourly mean | M51: Monthly 1/2 hourly maximum | N51: Monthly daily mean | O51: Monthly daily maximum
J52: A4 | K52: Jan
K53: Feb
K54: Mar
K55: Apr
K56: May
K57: Jun
K58: Jul
K59: Aug
K60: Sep
K61: Oct
K62: Nov
K63: Dec
K64: Annual | L64: =AVERAGE(L52:L63) ->  | M64: =MAX(M52:M63) -> 0 | N64: =AVERAGE(N52:N63) ->  | O64: =MAX(O52:O63) -> 0
J66: =+A6 -> 2023 | K66: mg/Nm3 | L66: Monthly 1/2 hourly mean | M66: Monthly 1/2 hourly maximum | N66: Monthly daily mean | O66: Monthly daily maximum
J67: A5 | K67: Jan
K68: Feb
K69: Mar
K70: Apr
K71: May
K72: Jun
K73: Jul
K74: Aug
K75: Sep
K76: Oct
K77: Nov
K78: Dec
K79: Annual | L79: =AVERAGE(L67:L78) ->  | M79: =MAX(M67:M78) -> 0 | N79: =AVERAGE(N67:N78) ->  | O79: =MAX(O67:O78) -> 0

Sheet SO2
A1: =+'Cover Page'!$B$29 -> Annual Performance Report 2023 | E1: =+'Cover Page'!$B$33 -> Peterborough Energy Recovery Facility
A3: Monitoring of Sulphur dioxide emissions | D3: Whole Installation | G3: See Notes in Cell Q3 | J3: =+A3 -> Monitoring of Sulphur dioxide emissions | N3: Per Combustion Line | Q3: Notes:
Q4: User to add logic to complete Whole installation, Table A5:G18. From the data in Per Combustion Line, Table J6:O79, subject to No. of lines installed
A5: mg/Nm3 | B5: 1/2 Hourly Reference Periods | E5: Daily Reference Periods
A6: =+'Cover Page'!C39 -> 2023 | B6: 1/2 hourly SO2 ELV | C6: Monthly 1/2 hourly mean | D6: Highest 1/2 hourly maximum | E6: Daily SO2 ELV* | F6: Monthly daily mean | G6: Highest daily maximum | J6: =+A6 -> 2023 | K6: mg/Nm3 | L6: Monthly 1/2 hourly mean | M6: Monthly 1/2 hourly maximum | N6: Monthly daily mean | O6: Monthly daily maximum
A7: Jan | B7: 200 | C7: =L7 -> 23.5 | D7: =M7 -> 52.1 | E7: 50 | F7: =N7 -> 23.5 | G7: =O7 -> 32.2 | J7: A1 | K7: Jan | L7: 23.5 | M7: 52.1 | N7: 23.5 | O7: 32.2
A8: Feb | B8: 200 | C8: =L8 -> 28.3 | D8: =M8 -> 132.5 | E8: 50 | F8: =N8 -> 28.3 | G8: =O8 -> 33.5 | K8: Feb | L8: 28.3 | M8: 132.5 | N8: 28.3 | O8: 33.5
A9: Mar | B9: 200 | C9: 24.5 | D9: 66.1 | E9: 50 | F9: 24.4 | G9: 32.2 | K9: Mar | L9: 24.5 | M9: 66.1 | N9: 24.4 | O9: 32.2 | Q9: Whole Installation table A5:G18:
A10: Apr | B10: 200 | C10: 23.9 | D10: 87 | E10: 50 | F10: 23.9 | G10: 32.1 | K10: Apr | L10: 23.9 | M10: 87 | N10: 23.9 | O10: 32.1 | Q10: Mean: for 1/2 hourly and daily periods calculate mean of values across all operational combustion lines for the month
A11: May | B11: 200 | C11: 17.9 | D11: 72.1 | E11: 50 | F11: 18 | G11: 26.3 | K11: May | L11: 17.9 | M11: 72.1 | N11: 18 | O11: 26.3
A12: Jun | B12: 200 | C12: 31 | D12: 203.4 | E12: 50 | F12: 30.3 | G12: 38.6 | K12: Jun | L12: 31 | M12: 203.4 | N12: 30.3 | O12: 38.6
A13: Jul | B13: 200 | C13: 23.8 | D13: 246.2 | E13: 50 | F13: 23.5 | G13: 32.7 | K13: Jul | L13: 23.8 | M13: 246.2 | N13: 23.5 | O13: 32.7 | Q13: Maximum: for 1/2 hourly and daily periods use the highest value across all operational combustion lines for the month
A14: Aug | B14: 200 | C14: 18.7 | D14: 74.1 | E14: 50 | F14: 18.6 | G14: 29 | K14: Aug | L14: 18.7 | M14: 74.1 | N14: 18.6 | O14: 29
A15: Sep | B15: 200 | C15: 26.4 | D15: 72.6 | E15: 50 | F15: 25.9 | G15: 30.6 | K15: Sep | L15: 26.4 | M15: 72.6 | N15: 25.9 | O15: 30.6
A16: Oct | B16: 200 | C16: 24 | D16: 95.7 | E16: 50 | F16: 24 | G16: 33 | K16: Oct | L16: 24 | M16: 95.7 | N16: 24 | O16: 33
A17: Nov | B17: 200 | C17: 26.4 | D17: 215.2 | E17: 50 | F17: 26.4 | G17: 46.3 | K17: Nov | L17: 26.4 | M17: 215.2 | N17: 26.4 | O17: 46.3
A18: Dec | B18: 200 | C18: 25.4 | D18: 104.5 | E18: 40 | F18: 25.2 | G18: 34.4 | K18: Dec | L18: 25.4 | M18: 104.5 | N18: 25.2 | O18: 34.4
E19: * ELV reduced to 40 mg/Nm3 on 3 December 2023 | K19: Annual | L19: =AVERAGE(L7:L18) -> 24.48333333 | M19: =MAX(M7:M18) -> 246.2 | N19: =AVERAGE(N7:N18) -> 24.33333333 | O19: =MAX(O7:O18) -> 46.3
J21: =+A6 -> 2023 | K21: mg/Nm3 | L21: Monthly 1/2 hourly mean | M21: Monthly 1/2 hourly maximum | N21: Monthly daily mean | O21: Monthly daily maximum
J22: A2 | K22: Jan
K23: Feb
K24: Mar
K25: Apr
K26: May
K27: Jun
K28: Jul
K29: Aug
K30: Sep
K31: Oct
K32: Nov
K33: Dec
K34: Annual | L34: =AVERAGE(L22:L33) ->  | M34: =MAX(M22:M33) -> 0 | N34: =AVERAGE(N22:N33) ->  | O34: =MAX(O22:O33) -> 0
J36: =+A6 -> 2023 | K36: mg/Nm3 | L36: Monthly 1/2 hourly mean | M36: Monthly 1/2 hourly maximum | N36: Monthly daily mean | O36: Monthly daily maximum
J37: A3 | K37: Jan
K38: Feb
K39: Mar
K40: Apr
K41: May
K42: Jun
K43: Jul
K44: Aug
K45: Sep
K46: Oct
K47: Nov
A48: Comments : | K48: Dec
K49: Annual | L49: =AVERAGE(L37:L48) ->  | M49: =MAX(M37:M48) -> 0 | N49: =AVERAGE(N37:N48) ->  | O49: =MAX(O37:O48) -> 0
J51: =+A6 -> 2023 | K51: mg/Nm3 | L51: Monthly 1/2 hourly mean | M51: Monthly 1/2 hourly maximum | N51: Monthly daily mean | O51: Monthly daily maximum
J52: A4 | K52: Jan
K53: Feb
K54: Mar
K55: Apr
K56: May
K57: Jun
K58: Jul
K59: Aug
K60: Sep
K61: Oct
K62: Nov
K63: Dec
K64: Annual | L64: =AVERAGE(L52:L63) ->  | M64: =MAX(M52:M63) -> 0 | N64: =AVERAGE(N52:N63) ->  | O64: =MAX(O52:O63) -> 0
J66: =+A6 -> 2023 | K66: mg/Nm3 | L66: Monthly 1/2 hourly mean | M66: Monthly 1/2 hourly maximum | N66: Monthly daily mean | O66: Monthly daily maximum
J67: A5 | K67: Jan
K68: Feb
K69: Mar
K70: Apr
K71: May
K72: Jun
K73: Jul
K74: Aug
K75: Sep
K76: Oct
K77: Nov
K78: Dec
K79: Annual | L79: =AVERAGE(L67:L78) ->  | M79: =MAX(M67:M78) -> 0 | N79: =AVERAGE(N67:N78) ->  | O79: =MAX(O67:O78) -> 0

Sheet NOx
A1: =+'Cover Page'!$B$29 -> Annual Performance Report 2023 | E1: =+'Cover Page'!$B$33 -> Peterborough Energy Recovery Facility
A3: Monitoring of Oxides of Nitrogen emissions | D3: Whole Installation | G3: See Notes in Cell Q3 | J3: =+A3 -> Monitoring of Oxides of Nitrogen emissions | N3: Per Combustion Line | Q3: Notes:
Q4: User to add logic to complete Whole installation, Table A5:G18. From the data in Per Combustion Line, Table J6:O79, subject to No. of lines installed
A5: mg/Nm3 | B5: 1/2 Hourly Reference Periods | E5: Daily Reference Periods
A6: =+'Cover Page'!C39 -> 2023 | B6: 1/2 hourly NOx ELV | C6: Monthly 1/2 hourly mean | D6: Highest 1/2 hourly maximum | E6: Daily NOx ELV* | F6: Monthly daily mean | G6: Highest daily maximum | J6: =+A6 -> 2023 | K6: mg/Nm3 | L6: Monthly 1/2 hourly mean | M6: Monthly 1/2 hourly maximum | N6: Monthly daily mean | O6: Monthly daily maximum
A7: Jan | B7: 400 | C7: =L7 -> 116.7 | D7: =M7 -> 166.3 | E7: 200 | F7: =N7 -> 116.7 | G7: =O7 -> 124.8 | J7: A1 | K7: Jan | L7: 116.7 | M7: 166.3 | N7: 116.7 | O7: 124.8
A8: Feb | B8: 400 | C8: =L8 -> 116.4 | D8: =M8 -> 173.2 | E8: 200 | F8: =N8 -> 116.3 | G8: =O8 -> 122.8 | K8: Feb | L8: 116.4 | M8: 173.2 | N8: 116.3 | O8: 122.8
A9: Mar | B9: 400 | C9: 116.3 | D9: 149 | E9: 200 | F9: 116.3 | G9: 119 | K9: Mar | L9: 116.3 | M9: 149 | N9: 116.3 | O9: 119 | Q9: Whole Installation table A5:G18:
A10: Apr | B10: 400 | C10: 115.6 | D10: 135.1 | E10: 200 | F10: 115.6 | G10: 116.3 | K10: Apr | L10: 115.6 | M10: 135.1 | N10: 115.6 | O10: 116.3 | Q10: Mean: for 1/2 hourly and daily periods calculate mean of values across all operational combustion lines for the month
A11: May | B11: 400 | C11: 117 | D11: 170.3 | E11: 200 | F11: 117.1 | G11: 127.4 | K11: May | L11: 117 | M11: 170.3 | N11: 117.1 | O11: 127.4
A12: Jun | B12: 400 | C12: 109.3 | D12: 268.4 | E12: 200 | F12: 109.7 | G12: 115.9 | K12: Jun | L12: 109.3 | M12: 268.4 | N12: 109.7 | O12: 115.9
A13: Jul | B13: 400 | C13: 107.5 | D13: 218.7 | E13: 200 | F13: 107.6 | G13: 120 | K13: Jul | L13: 107.5 | M13: 218.7 | N13: 107.6 | O13: 120 | Q13: Maximum: for 1/2 hourly and daily periods use the highest value across all operational combustion lines for the month
A14: Aug | B14: 400 | C14: 103 | D14: 135.7 | E14: 200 | F14: 102.9 | G14: 112.3 | K14: Aug | L14: 103 | M14: 135.7 | N14: 102.9 | O14: 112.3
A15: Sep | B15: 400 | C15: 106 | D15: 215.3 | E15: 200 | F15: 105.7 | G15: 115.9 | K15: Sep | L15: 106 | M15: 215.3 | N15: 105.7 | O15: 115.9
A16: Oct | B16: 400 | C16: 98.5 | D16: 121.1 | E16: 200 | F16: 98.5 | G16: 106 | K16: Oct | L16: 98.5 | M16: 121.1 | N16: 98.5 | O16: 106
A17: Nov | B17: 400 | C17: 106 | D17: 199 | E17: 200 | F17: 105.9 | G17: 122.5 | K17: Nov | L17: 106 | M17: 199 | N17: 105.9 | O17: 122.5
A18: Dec | B18: 400 | C18: 112.1 | D18: 147.4 | E18: 200 | F18: 112.1 | G18: 115.9 | K18: Dec | L18: 112.1 | M18: 147.4 | N18: 112.1 | O18: 115.9
E19: * ELV reduced to 180 mg/Nm3 on 3 December 2023 | K19: Annual | L19: =AVERAGE(L7:L18) -> 110.3666667 | M19: =MAX(M7:M18) -> 268.4 | N19: =AVERAGE(N7:N18) -> 110.3666667 | O19: =MAX(O7:O18) -> 127.4
J21: =+A6 -> 2023 | K21: mg/Nm3 | L21: Monthly 1/2 hourly mean | M21: Monthly 1/2 hourly maximum | N21: Monthly daily mean | O21: Monthly daily maximum
J22: A2 | K22: Jan
K23: Feb
K24: Mar
K25: Apr
K26: May
K27: Jun
K28: Jul
K29: Aug
K30: Sep
K31: Oct
K32: Nov
K33: Dec
K34: Annual | L34: =AVERAGE(L22:L33) ->  | M34: =MAX(M22:M33) -> 0 | N34: =AVERAGE(N22:N33) ->  | O34: =MAX(O22:O33) -> 0
J36: =+A6 -> 2023 | K36: mg/Nm3 | L36: Monthly 1/2 hourly mean | M36: Monthly 1/2 hourly maximum | N36: Monthly daily mean | O36: Monthly daily maximum
J37: A3 | K37: Jan
K38: Feb
K39: Mar
K40: Apr
K41: May
K42: Jun
K43: Jul
K44: Aug
K45: Sep
K46: Oct
K47: Nov
A48: Comments : | K48: Dec
K49: Annual | L49: =AVERAGE(L37:L48) ->  | M49: =MAX(M37:M48) -> 0 | N49: =AVERAGE(N37:N48) ->  | O49: =MAX(O37:O48) -> 0
J51: =+A6 -> 2023 | K51: mg/Nm3 | L51: Monthly 1/2 hourly mean | M51: Monthly 1/2 hourly maximum | N51: Monthly daily mean | O51: Monthly daily maximum
J52: A4 | K52: Jan
K53: Feb
K54: Mar
K55: Apr
K56: May
K57: Jun
K58: Jul
K59: Aug
K60: Sep
K61: Oct
K62: Nov
K63: Dec
K64: Annual | L64: =AVERAGE(L52:L63) ->  | M64: =MAX(M52:M63) -> 0 | N64: =AVERAGE(N52:N63) ->  | O64: =MAX(O52:O63) -> 0
J66: =+A6 -> 2023 | K66: mg/Nm3 | L66: Monthly 1/2 hourly mean | M66: Monthly 1/2 hourly maximum | N66: Monthly daily mean | O66: Monthly daily maximum
J67: A5 | K67: Jan
K68: Feb
K69: Mar
K70: Apr
K71: May
K72: Jun
K73: Jul
K74: Aug
K75: Sep
K76: Oct
K77: Nov
K78: Dec
K79: Annual | L79: =AVERAGE(L67:L78) ->  | M79: =MAX(M67:M78) -> 0 | N79: =AVERAGE(N67:N78) ->  | O79: =MAX(O67:O78) -> 0

Sheet TOC
A1: =+'Cover Page'!$B$29 -> Annual Performance Report 2023 | E1: =+'Cover Page'!$B$33 -> Peterborough Energy Recovery Facility
A3: Monitoring of Total organic carbon emissions | D3: Whole Installation | G3: See Notes in Cell Q3 | J3: =+A3 -> Monitoring of Total organic carbon emissions | N3: Per Combustion Line | Q3: Notes:
Q4: User to add logic to complete Whole installation, Table A5:G18. From the data in Per Combustion Line, Table J6:O79, subject to No. of lines installed
A5: mg/Nm3 | B5: 1/2 Hourly Reference Periods | E5: Daily Reference Periods
A6: =+'Cover Page'!C39 -> 2023 | B6: 1/2 hourly TOC ELV | C6: Monthly 1/2 hourly mean | D6: Highest 1/2 hourly maximum | E6: Daily TOC ELV | F6: Monthly daily mean | G6: Highest daily maximum | J6: =+A6 -> 2023 | K6: mg/Nm3 | L6: Monthly 1/2 hourly mean | M6: Monthly 1/2 hourly maximum | N6: Monthly daily mean | O6: Monthly daily maximum
A7: Jan | B7: 20 | C7: =L7 -> 0.5 | D7: =M7 -> 11.1 | E7: 10 | F7: =N7 -> 0.4 | G7: =O7 -> 0.7 | J7: A1 | K7: Jan | L7: 0.5 | M7: 11.1 | N7: 0.4 | O7: 0.7
A8: Feb | B8: 20 | C8: =L8 -> 0.4 | D8: =M8 -> 4.5 | E8: 10 | F8: =N8 -> 0.4 | G8: =O8 -> 0.7 | K8: Feb | L8: 0.4 | M8: 4.5 | N8: 0.4 | O8: 0.7
A9: Mar | B9: 20 | C9: 0.4 | D9: 5.4 | E9: 10 | F9: 0.4 | G9: 0.8 | K9: Mar | L9: 0.4 | M9: 5.4 | N9: 0.4 | O9: 0.8 | Q9: Whole Installation table A5:G18:
A10: Apr | B10: 20 | C10: 0.4 | D10: 2.7 | E10: 10 | F10: 0.4 | G10: 0.6 | K10: Apr | L10: 0.4 | M10: 2.7 | N10: 0.4 | O10: 0.6 | Q10: Mean: for 1/2 hourly and daily periods calculate mean of values across all operational combustion lines for the month
A11: May | B11: 20 | C11: 0.4 | D11: 3.3 | E11: 10 | F11: 0.4 | G11: 0.5 | K11: May | L11: 0.4 | M11: 3.3 | N11: 0.4 | O11: 0.5
A12: Jun | B12: 20 | C12: 0.4 | D12: 1 | E12: 10 | F12: 0.3 | G12: 0.5 | K12: Jun | L12: 0.4 | M12: 1 | N12: 0.3 | O12: 0.5
A13: Jul | B13: 20 | C13: 0.4 | D13: 7.7 | E13: 10 | F13: 0.3 | G13: 0.5 | K13: Jul | L13: 0.4 | M13: 7.7 | N13: 0.3 | O13: 0.5 | Q13: Maximum: for 1/2 hourly and daily periods use the highest value across all operational combustion lines for the month
A14: Aug | B14: 20 | C14: 0.3 | D14: 11.4 | E14: 10 | F14: 0.3 | G14: 0.6 | K14: Aug | L14: 0.3 | M14: 11.4 | N14: 0.3 | O14: 0.6
A15: Sep | B15: 20 | C15: 0.7 | D15: 3.8 | E15: 10 | F15: 0.6 | G15: 1.1 | K15: Sep | L15: 0.7 | M15: 3.8 | N15: 0.6 | O15: 1.1
A16: Oct | B16: 20 | C16: 0.5 | D16: 3.1 | E16: 10 | F16: 0.4 | G16: 0.7 | K16: Oct | L16: 0.5 | M16: 3.1 | N16: 0.4 | O16: 0.7
A17: Nov | B17: 20 | C17: 0.5 | D17: 3.3 | E17: 10 | F17: 0.5 | G17: 0.7 | K17: Nov | L17: 0.5 | M17: 3.3 | N17: 0.5 | O17: 0.7
A18: Dec | B18: 20 | C18: 0.5 | D18: 2.9 | E18: 10 | F18: 0.5 | G18: 0.7 | K18: Dec | L18: 0.5 | M18: 2.9 | N18: 0.5 | O18: 0.7
K19: Annual | L19: =AVERAGE(L7:L18) -> 0.45 | M19: =MAX(M7:M18) -> 11.4 | N19: =AVERAGE(N7:N18) -> 0.4083333333 | O19: =MAX(O7:O18) -> 1.1
J21: =+A6 -> 2023 | K21: mg/Nm3 | L21: Monthly 1/2 hourly mean | M21: Monthly 1/2 hourly maximum | N21: Monthly daily mean | O21: Monthly daily maximum
J22: A2 | K22: Jan
K23: Feb
K24: Mar
K25: Apr
K26: May
K27: Jun
K28: Jul
K29: Aug
K30: Sep
K31: Oct
K32: Nov
K33: Dec
K34: Annual | L34: =AVERAGE(L22:L33) ->  | M34: =MAX(M22:M33) -> 0 | N34: =AVERAGE(N22:N33) ->  | O34: =MAX(O22:O33) -> 0
J36: =+A6 -> 2023 | K36: mg/Nm3 | L36: Monthly 1/2 hourly mean | M36: Monthly 1/2 hourly maximum | N36: Monthly daily mean | O36: Monthly daily maximum
J37: A3 | K37: Jan
K38: Feb
K39: Mar
K40: Apr
K41: May
K42: Jun
K43: Jul
K44: Aug
K45: Sep
K46: Oct
K47: Nov
A48: Comments : | K48: Dec
K49: Annual | L49: =AVERAGE(L37:L48) ->  | M49: =MAX(M37:M48) -> 0 | N49: =AVERAGE(N37:N48) ->  | O49: =MAX(O37:O48) -> 0
J51: =+A6 -> 2023 | K51: mg/Nm3 | L51: Monthly 1/2 hourly mean | M51: Monthly 1/2 hourly maximum | N51: Monthly daily mean | O51: Monthly daily maximum
J52: A4 | K52: Jan
K53: Feb
K54: Mar
K55: Apr
K56: May
K57: Jun
K58: Jul
K59: Aug
K60: Sep
K61: Oct
K62: Nov
K63: Dec
K64: Annual | L64: =AVERAGE(L52:L63) ->  | M64: =MAX(M52:M63) -> 0 | N64: =AVERAGE(N52:N63) ->  | O64: =MAX(O52:O63) -> 0
J66: =+A6 -> 2023 | K66: mg/Nm3 | L66: Monthly 1/2 hourly mean | M66: Monthly 1/2 hourly maximum | N66: Monthly daily mean | O66: Monthly daily maximum
J67: A5 | K67: Jan
K68: Feb
K69: Mar
K70: Apr
K71: May
K72: Jun
K73: Jul
K74: Aug
K75: Sep
K76: Oct
K77: Nov
K78: Dec
K79: Annual | L79: =AVERAGE(L67:L78) ->  | M79: =MAX(M67:M78) -> 0 | N79: =AVERAGE(N67:N78) ->  | O79: =MAX(O67:O78) -> 0

Sheet Particulates
A1: =+'Cover Page'!$B$29 -> Annual Performance Report 2023 | E1: =+'Cover Page'!$B$33 -> Peterborough Energy Recovery Facility
A3: Monitoring of Particulate matter emissions | D3: Whole Installation | G3: See Notes in Cell Q3 | J3: =+A3 -> Monitoring of Particulate matter emissions | N3: Per Combustion Line | Q3: Notes:
Q4: User to add logic to complete Whole installation, Table A5:G18. From the data in Per Combustion Line, Table J6:O79, subject to No. of lines installed
A5: mg/Nm3 | B5: 1/2 Hourly Reference Periods | E5: Daily Reference Periods
A6: =+'Cover Page'!C39 -> 2023 | B6: 1/2 hourly PM ELV | C6: Monthly 1/2 hourly mean | D6: Highest 1/2 hourly maximum | E6: Daily PM ELV* | F6: Monthly daily mean | G6: Highest daily maximum | J6: =+A6 -> 2023 | K6: mg/Nm3 | L6: Monthly 1/2 hourly mean | M6: Monthly 1/2 hourly maximum | N6: Monthly daily mean | O6: Monthly daily maximum
A7: Jan | B7: 30 | C7: =L7 -> 2.8 | D7: =M7 -> 16.1 | E7: 10 | F7: =N7 -> 2.7 | G7: =O7 -> 6.4 | J7: A1 | K7: Jan | L7: 2.8 | M7: 16.1 | N7: 2.7 | O7: 6.4
A8: Feb | B8: 30 | C8: =L8 -> 4.4 | D8: =M8 -> 19 | E8: 10 | F8: =N8 -> 4.3 | G8: =O8 -> 8.7 | K8: Feb | L8: 4.4 | M8: 19 | N8: 4.3 | O8: 8.7
A9: Mar | B9: 30 | C9: 5 | D9: 19.7 | E9: 10 | F9: 5 | G9: 8.6 | K9: Mar | L9: 5 | M9: 19.7 | N9: 5 | O9: 8.6 | Q9: Whole Installation table A5:G18:
A10: Apr | B10: 30 | C10: 3 | D10: 13.9 | E10: 10 | F10: 2.9 | G10: 4.9 | K10: Apr | L10: 3 | M10: 13.9 | N10: 2.9 | O10: 4.9 | Q10: Mean: for 1/2 hourly and daily periods calculate mean of values across all operational combustion lines for the month
A11: May | B11: 30 | C11: 1.6 | D11: 5.6 | E11: 10 | F11: 1.6 | G11: 2.6 | K11: May | L11: 1.6 | M11: 5.6 | N11: 1.6 | O11: 2.6
A12: Jun | B12: 30 | C12: 4.9 | D12: 33.8 | E12: 10 | F12: 4.5 | G12: 9.3 | K12: Jun | L12: 4.9 | M12: 33.8 | N12: 4.5 | O12: 9.3
A13: Jul | B13: 30 | C13: 1.6 | D13: 24.4 | E13: 10 | F13: 1.4 | G13: 5.2 | K13: Jul | L13: 1.6 | M13: 24.4 | N13: 1.4 | O13: 5.2 | Q13: Maximum: for 1/2 hourly and daily periods use the highest value across all operational combustion lines for the month
A14: Aug | B14: 30 | C14: 0.3 | D14: 4.3 | E14: 10 | F14: 0.2 | G14: 1.8 | K14: Aug | L14: 0.3 | M14: 4.3 | N14: 0.2 | O14: 1.8
A15: Sep | B15: 30 | C15: 0 | D15: 0.7 | E15: 10 | F15: 0 | G15: 0.1 | K15: Sep | L15: 0 | M15: 0.7 | N15: 0 | O15: 0.1
A16: Oct | B16: 30 | C16: 0 | D16: 2.2 | E16: 10 | F16: 0 | G16: 0.2 | K16: Oct | L16: 0 | M16: 2.2 | N16: 0 | O16: 0.2
A17: Nov | B17: 30 | C17: 0.9 | D17: 10.6 | E17: 10 | F17: 0.9 | G17: 1.9 | K17: Nov | L17: 0.9 | M17: 10.6 | N17: 0.9 | O17: 1.9
A18: Dec | B18: 30 | C18: 1.4 | D18: 9.6 | E18: 5 | F18: 1.4 | G18: 3.1 | K18: Dec | L18: 1.4 | M18: 9.6 | N18: 1.4 | O18: 3.1
E19: * ELV reduced to 5 mg/Nm3 on 3 December 2023 | K19: Annual | L19: =AVERAGE(L7:L18) -> 2.158333333 | M19: =MAX(M7:M18) -> 33.8 | N19: =AVERAGE(N7:N18) -> 2.075 | O19: =MAX(O7:O18) -> 9.3
J21: =+A6 -> 2023 | K21: mg/Nm3 | L21: Monthly 1/2 hourly mean | M21: Monthly 1/2 hourly maximum | N21: Monthly daily mean | O21: Monthly daily maximum
J22: A2 | K22: Jan
K23: Feb
K24: Mar
K25: Apr
K26: May
K27: Jun
K28: Jul
K29: Aug
K30: Sep
K31: Oct
K32: Nov
K33: Dec
K34: Annual | L34: =AVERAGE(L22:L33) ->  | M34: =MAX(M22:M33) -> 0 | N34: =AVERAGE(N22:N33) ->  | O34: =MAX(O22:O33) -> 0
J36: =+A6 -> 2023 | K36: mg/Nm3 | L36: Monthly 1/2 hourly mean | M36: Monthly 1/2 hourly maximum | N36: Monthly daily mean | O36: Monthly daily maximum
J37: A3 | K37: Jan
K38: Feb
K39: Mar
K40: Apr
K41: May
K42: Jun
K43: Jul
K44: Aug
K45: Sep
K46: Oct
K47: Nov
A48: Comments : | K48: Dec
K49: Annual | L49: =AVERAGE(L37:L48) ->  | M49: =MAX(M37:M48) -> 0 | N49: =AVERAGE(N37:N48) ->  | O49: =MAX(O37:O48) -> 0
J51: =+A6 -> 2023 | K51: mg/Nm3 | L51: Monthly 1/2 hourly mean | M51: Monthly 1/2 hourly maximum | N51: Monthly daily mean | O51: Monthly daily maximum
J52: A4 | K52: Jan
K53: Feb
K54: Mar
K55: Apr
K56: May
K57: Jun
K58: Jul
K59: Aug
K60: Sep
K61: Oct
K62: Nov
K63: Dec
K64: Annual | L64: =AVERAGE(L52:L63) ->  | M64: =MAX(M52:M63) -> 0 | N64: =AVERAGE(N52:N63) ->  | O64: =MAX(O52:O63) -> 0
J66: =+A6 -> 2023 | K66: mg/Nm3 | L66: Monthly 1/2 hourly mean | M66: Monthly 1/2 hourly maximum | N66: Monthly daily mean | O66: Monthly daily maximum
J67: A5 | K67: Jan
K68: Feb
K69: Mar
K70: Apr
K71: May
K72: Jun
K73: Jul
K74: Aug
K75: Sep
K76: Oct
K77: Nov
K78: Dec
K79: Annual | L79: =AVERAGE(L67:L78) ->  | M79: =MAX(M67:M78) -> 0 | N79: =AVERAGE(N67:N78) ->  | O79: =MAX(O67:O78) -> 0

Sheet CO 0.5 hourly
A1: =+'Cover Page'!$B$29 -> Annual Performance Report 2023 | E1: =+'Cover Page'!$B$33 -> Peterborough Energy Recovery Facility
A3: Monitoring of Carbon Monoxide (half hourly) | D3: Whole Installation | G3: See Notes in Cell Q3 | J3: =+A3 -> Monitoring of Carbon Monoxide (half hourly) | N3: Per Combustion Line | Q3: Notes:
A5: Please complete this tab for your plant if you have 1/2 hourly CO ELVs; otherwise, leave it blank and complete the CO 95% 10 min tab
Q7: User to add logic to complete Whole installation, Table A5:G18. From the data in Per Combustion Line, Table J6:O79, subject to No. of lines installed
A8: mg/Nm3 | B8: 1/2 Hourly Reference Periods | E8: Daily Reference Periods
A9: =+'Cover Page'!C39 -> 2023 | B9: 1/2 hourly CO ELV | C9: Monthly 1/2 hourly mean | D9: Highest 1/2 hourly maximum | E9: Daily CO ELV | F9: Monthly daily mean | G9: Highest daily maximum | J9: =+A9 -> 2023 | K9: mg/Nm3 | L9: Monthly 1/2 hourly mean | M9: Monthly 1/2 hourly maximum | N9: Monthly daily mean | O9: Monthly daily maximum
A10: Jan | B10: 100 | C10: =L10 -> 2.7 | D10: =M10 -> 129.6 | E10: 50 | F10: =N10 -> 2.7 | G10: =O10 -> 4.8 | J10: A1 | K10: Jan | L10: 2.7 | M10: 129.6 | N10: 2.7 | O10: 4.8
A11: Feb | B11: =+B10 -> 100 | C11: =L11 -> 2.3 | D11: =M11 -> 28 | E11: =+E10 -> 50 | F11: =N11 -> 2.3 | G11: =O11 -> 4.4 | K11: Feb | L11: 2.3 | M11: 28 | N11: 2.3 | O11: 4.4
A12: Mar | B12: =+B11 -> 100 | C12: 2.5 | D12: 67.3 | E12: =+E11 -> 50 | F12: 2.5 | G12: 4.1 | K12: Mar | L12: 2.5 | M12: 67.3 | N12: 2.5 | O12: 4.1 | Q12: Whole Installation table A5:G18:
A13: Apr | B13: 100 | C13: 2.5 | D13: 113 | E13: 50 | F13: 2.5 | G13: 5.3 | K13: Apr | L13: 2.5 | M13: 113 | N13: 2.5 | O13: 5.3 | Q13: Mean: for 1/2 hourly and daily periods calculate mean of values across all operational combustion lines for the month
A14: May | B14: 100 | C14: 2.6 | D14: 76.8 | E14: 50 | F14: 2.6 | G14: 4 | K14: May | L14: 2.6 | M14: 76.8 | N14: 2.6 | O14: 4
A15: Jun | B15: 100 | C15: 2.6 | D15: 33.4 | E15: 50 | F15: 2.6 | G15: 3.3 | K15: Jun | L15: 2.6 | M15: 33.4 | N15: 2.6 | O15: 3.3
A16: Jul | B16: 100 | C16: 2.6 | D16: 90.7 | E16: 50 | F16: 2.6 | G16: 4 | K16: Jul | L16: 2.6 | M16: 90.7 | N16: 2.6 | O16: 4 | Q16: Maximum: for 1/2 hourly and daily periods use the highest value across all operational combustion lines for the month
A17: Aug | B17: 100 | C17: 2.5 | D17: 129.3 | E17: 50 | F17: 2.5 | G17: 5.4 | K17: Aug | L17: 2.5 | M17: 129.3 | N17: 2.5 | O17: 5.4
A18: Sep | B18: 100 | C18: 3.7 | D18: 94.1 | E18: 50 | F18: 3.2 | G18: 5.6 | K18: Sep | L18: 3.7 | M18: 94.1 | N18: 3.2 | O18: 5.6
A19: Oct | B19: 100 | C19: 2.4 | D19: 49.1 | E19: 50 | F19: 2.4 | G19: 3.5 | K19: Oct | L19: 2.4 | M19: 49.1 | N19: 2.4 | O19: 3.5
A20: Nov | B20: 100 | C20: 2.6 | D20: 65.1 | E20: 50 | F20: 2.6 | G20: 4.1 | K20: Nov | L20: 2.6 | M20: 65.1 | N20: 2.6 | O20: 4.1
A21: Dec | B21: 100 | C21: 2.4 | D21: 47.1 | E21: 50 | F21: 2.3 | G21: 4.5 | K21: Dec | L21: 2.4 | M21: 47.1 | N21: 2.3 | O21: 4.5
K22: Annual | L22: =AVERAGE(L10:L21) -> 2.616666667 | M22: =MAX(M10:M21) -> 129.6 | N22: =AVERAGE(N10:N21) -> 2.566666667 | O22: =MAX(O10:O21) -> 5.6
J24: =+A9 -> 2023 | K24: mg/Nm3 | L24: Monthly 1/2 hourly mean | M24: Monthly 1/2 hourly maximum | N24: Monthly daily mean | O24: Monthly daily maximum
J25: A2 | K25: Jan
K26: Feb
K27: Mar
K28: Apr
K29: May
K30: Jun
K31: Jul
K32: Aug
K33: Sep
K34: Oct
K35: Nov
K36: Dec
K37: Annual | L37: =AVERAGE(L25:L36) ->  | M37: =MAX(M25:M36) -> 0 | N37: =AVERAGE(N25:N36) ->  | O37: =MAX(O25:O36) -> 0
J39: =+A9 -> 2023 | K39: mg/Nm3 | L39: Monthly 1/2 hourly mean | M39: Monthly 1/2 hourly maximum | N39: Monthly daily mean | O39: Monthly daily maximum
J40: A3 | K40: Jan
K41: Feb
K42: Mar
K43: Apr
K44: May
K45: Jun
K46: Jul
K47: Aug
K48: Sep
K49: Oct
K50: Nov
A51: Comments : | K51: Dec
K52: Annual | L52: =AVERAGE(L40:L51) ->  | M52: =MAX(M40:M51) -> 0 | N52: =AVERAGE(N40:N51) ->  | O52: =MAX(O40:O51) -> 0
J54: =+A9 -> 2023 | K54: mg/Nm3 | L54: Monthly 1/2 hourly mean | M54: Monthly 1/2 hourly maximum | N54: Monthly daily mean | O54: Monthly daily maximum
J55: A4 | K55: Jan
K56: Feb
K57: Mar
K58: Apr
K59: May
K60: Jun
K61: Jul
K62: Aug
K63: Sep
K64: Oct
K65: Nov
K66: Dec
K67: Annual | L67: =AVERAGE(L55:L66) ->  | M67: =MAX(M55:M66) -> 0 | N67: =AVERAGE(N55:N66) ->  | O67: =MAX(O55:O66) -> 0
J69: =+A9 -> 2023 | K69: mg/Nm3 | L69: Monthly 1/2 hourly mean | M69: Monthly 1/2 hourly maximum | N69: Monthly daily mean | O69: Monthly daily maximum
J70: A5 | K70: Jan
K71: Feb
K72: Mar
K73: Apr
K74: May
K75: Jun
K76: Jul
K77: Aug
K78: Sep
K79: Oct
K80: Nov
K81: Dec
K82: Annual | L82: =AVERAGE(L70:L81) ->  | M82: =MAX(M70:M81) -> 0 | N82: =AVERAGE(N70:N81) ->  | O82: =MAX(O70:O81) -> 0

Sheet CO 95% 10 min
A1: =+'Cover Page'!$B$29 -> Annual Performance Report 2023 | E1: =+'Cover Page'!$B$33 -> Peterborough Energy Recovery Facility
A3: Monitoring of Carbon Monoxide (10-minute avg) | E3: Whole Installation | H3: See Notes in Cell S3 | J3: =+A3 -> Monitoring of Carbon Monoxide (10-minute avg) | O3: Per Combustion Line | Q3: Notes: | S3: Notes:
A5: Please complete this tab for your plant if you have 10-minute average CO ELVs; otherwise, leave it blank and complete the CO 0.5 hourly tab
S7: User to add logic to complete Whole installation, Table A5:H18. From the data in Per Combustion Line, Table K6:Q79, subject to No. of lines installed
A8: mg/Nm3 | B8: 10-minute Reference Periods | F8: Daily Reference Periods
A9: =+'Cover Page'!C39 -> 2023 | B9: 95%ile 10-min avg CO ELV | C9: 95%ile 10-min avg maximum | D9: Monthly CO 10-min avg mean | E9: 10-min avg maximum | F9: Daily CO ELV | G9: Monthly daily mean | H9: Highest daily maximum | K9: =+A9 -> 2023 | L9: mg/Nm3 | M9: 95%ile 10-min avg maximum | N9: Monthly CO 10-min avg mean | O9: 10-min avg maximum | P9: Monthly daily mean | Q9: Monthly daily maximum
A10: Jan | B10: 150 | C10: =M10 -> 11.2 | D10: =N10 -> 2.7 | E10: =O10 -> 384.7 | F10: 50 | G10: =P10 -> 2.7 | H10: =Q10 -> 4.8 | K10: A1 | L10: Jan | M10: 11.2 | N10: 2.7 | O10: 384.7 | P10: 2.7 | Q10: 4.8
A11: Feb | B11: =+B10 -> 150 | C11: =M11 -> 19.3 | D11: =N11 -> 2.3 | E11: =O11 -> 41.8 | F11: =+F10 -> 50 | G11: =P11 -> 2.3 | H11: =Q11 -> 4.4 | L11: Feb | M11: 19.3 | N11: 2.3 | O11: 41.8 | P11: 2.3 | Q11: 4.4
A12: Mar | B12: =+B11 -> 150 | C12: 15 | D12: 2.5 | E12: 195.7 | F12: =+F11 -> 50 | G12: 2.5 | H12: 4.1 | L12: Mar | M12: 15 | N12: 2.5 | O12: 195.7 | P12: 2.5 | Q12: 4.1 | S12: Whole Installation table A5:H18:
A13: Apr | B13: 150 | C13: 7.3 | D13: 2.5 | E13: 334.5 | F13: 50 | G13: 2.5 | H13: 5.3 | L13: Apr | M13: 7.3 | N13: 2.5 | O13: 334.5 | P13: 2.5 | Q13: 5.3 | S13: Mean: for 10-min and daily periods use average of all operational combustion lines.
A14: May | B14: 150 | C14: 4.8 | D14: 2.6 | E14: 172.5 | F14: 50 | G14: 2.5 | H14: 4 | L14: May | M14: 4.8 | N14: 2.6 | O14: 172.5 | P14: 2.5 | Q14: 4
A15: Jun | B15: 150 | C15: 6 | D15: 2.6 | E15: 72.4 | F15: 50 | G15: 2.5 | H15: 3.3 | L15: Jun | M15: 6 | N15: 2.6 | O15: 72.4 | P15: 2.5 | Q15: 3.3
A16: Jul | B16: 150 | C16: 18.5 | D16: 2.6 | E16: 223.8 | F16: 50 | G16: 2.5 | H16: 4 | L16: Jul | M16: 18.5 | N16: 2.6 | O16: 223.8 | P16: 2.5 | Q16: 4 | S16: Maximum: for 10-min and daily periods use the highest of all operational combustion lines in any month.
A17: Aug | B17: 150 | C17: 5.5 | D17: 2.5 | E17: 377.1 | F17: 50 | G17: 2.5 | H17: 5.4 | L17: Aug | M17: 5.5 | N17: 2.5 | O17: 377.1 | P17: 2.5 | Q17: 5.4
A18: Sep | B18: 150 | C18: 30.4 | D18: 3.7 | E18: 277.6 | F18: 50 | G18: 3.2 | H18: 5.6 | L18: Sep | M18: 30.4 | N18: 3.7 | O18: 277.6 | P18: 3.2 | Q18: 5.6
A19: Oct | B19: 150 | C19: 9.3 | D19: 2.4 | E19: 129 | F19: 50 | G19: 2.4 | H19: 3.5 | L19: Oct | M19: 9.3 | N19: 2.4 | O19: 129 | P19: 2.4 | Q19: 3.5
A20: Nov | B20: 150 | C20: 11 | D20: 2.6 | E20: 204.6 | F20: 50 | G20: 2.6 | H20: 4.1 | L20: Nov | M20: 11 | N20: 2.6 | O20: 204.6 | P20: 2.6 | Q20: 4.1
A21: Dec | B21: 150 | C21: 11.9 | D21: 2.4 | E21: 135 | F21: 50 | G21: 2.3 | H21: 4.5 | L21: Dec | M21: 11.9 | N21: 2.4 | O21: 135 | P21: 2.3 | Q21: 4.5
L22: Annual | M22: =AVERAGE(M10:M21) -> 12.51666667 | N22: =AVERAGE(N10:N21) -> 2.616666667 | O22: =MAX(O10:O21) -> 384.7 | P22: =AVERAGE(P10:P21) -> 2.541666667 | Q22: =MAX(Q10:Q21) -> 5.6
K24: =+A9 -> 2023 | L24: mg/Nm3 | M24: 95%ile 10-min avg maximum | N24: Monthly CO 10-min avg mean | O24: 10-min avg maximum | P24: Monthly daily mean | Q24: Monthly daily maximum
K25: A2 | L25: Jan
L26: Feb
L27: Mar
L28: Apr
L29: May
L30: Jun
L31: Jul
L32: Aug
L33: Sep
L34: Oct
L35: Nov
L36: Dec
L37: Annual | M37: =AVERAGE(M25:M36) ->  | O37: =MAX(O25:O36) -> 0 | P37: =AVERAGE(P25:P36) ->  | Q37: =MAX(Q25:Q36) -> 0
K39: =+A9 -> 2023 | L39: mg/Nm3 | M39: 95%ile 10-min avg maximum | N39: Monthly CO 10-min avg mean | O39: 10-min avg maximum | P39: Monthly daily mean | Q39: Monthly daily maximum
K40: A3 | L40: Jan
L41: Feb
L42: Mar
L43: Apr
L44: May
L45: Jun
L46: Jul
L47: Aug
L48: Sep
L49: Oct
L50: Nov
A51: Comments : | L51: Dec
A52: Environment Agency explanatory note: The 10-minute average ELV is based on the “95th percentile”. In this case this means that 95% of the 10 minute averages in the relevant 24-hour period (i.e. 137) must be below 150 mg/Nm3, and 5% (i.e. 7) are allowed to be any value above 150 mg/Nm3. Whilst we expect operators to minimise CO emissions at all times, it is perfectly acceptable for the value of the maximum 10-minute average to be above 150 mg/Nm3, provided the 95th percentile ELV has been met for that period. | L52: Annual | M52: =AVERAGE(M40:M51) ->  | O52: =MAX(O40:O51) -> 0 | P52: =AVERAGE(P40:P51) ->  | Q52: =MAX(Q40:Q51) -> 0
K54: =+A9 -> 2023 | L54: mg/Nm3 | M54: 95%ile 10-min avg maximum | N54: Monthly CO 10-min avg mean | O54: 10-min avg maximum | P54: Monthly daily mean | Q54: Monthly daily maximum
K55: A4 | L55: Jan
L56: Feb
L57: Mar
L58: Apr
L59: May
L60: Jun
L61: Jul
L62: Aug
L63: Sep
L64: Oct
L65: Nov
L66: Dec
L67: Annual | M67: =AVERAGE(M55:M66) ->  | O67: =MAX(O55:O66) -> 0 | P67: =AVERAGE(P55:P66) ->  | Q67: =MAX(Q55:Q66) -> 0
K69: =+A9 -> 2023 | L69: mg/Nm3 | M69: 95%ile 10-min avg maximum | N69: Monthly CO 10-min avg mean | O69: 10-min avg maximum | P69: Monthly daily mean | Q69: Monthly daily maximum
K70: A5 | L70: Jan
L71: Feb
L72: Mar
L73: Apr
L74: May
L75: Jun
L76: Jul
L77: Aug
L78: Sep
L79: Oct
L80: Nov
L81: Dec
L82: Annual | M82: =AVERAGE(M70:M81) ->  | O82: =MAX(O70:O81) -> 0 | P82: =AVERAGE(P70:P81) ->  | Q82: =MAX(Q70:Q81) -> 0

Sheet NH3
A1: =+'Cover Page'!$B$29 -> Annual Performance Report 2023 | E1: =+'Cover Page'!$B$33 -> Peterborough Energy Recovery Facility
A3: Monitoring of Ammnonia emissions | D3: Whole Installation | G3: See Notes in Cell Q3 | J3: =+A3 -> Monitoring of Ammnonia emissions | N3: Per Combustion Line | Q3: Notes:
Q4: User to add logic to complete Whole installation, Table A5:G18. From the data in Per Combustion Line, Table J6:O79, subject to No. of lines installed
A5: mg/Nm3 | B5: 1/2 Hourly Reference Periods | E5: Daily Reference Periods
A6: =+'Cover Page'!C39 -> 2023 | B6: 1/2 hourly NH3 ELV | C6: Monthly 1/2 hourly mean | D6: Highest 1/2 hourly maximum | E6: Daily NH3 ELV* | F6: Monthly daily mean | G6: Highest daily maximum | J6: =+A6 -> 2023 | K6: mg/Nm3 | L6: Monthly 1/2 hourly mean | M6: Monthly 1/2 hourly maximum | N6: Monthly daily mean | O6: Monthly daily maximum
A7: Jan | B7: None | C7: =L7 -> 6.6 | D7: =M7 -> 73.1 | E7: None | F7: =N7 -> 5.8 | G7: =O7 -> 16 | J7: A1 | K7: Jan | L7: 6.6 | M7: 73.1 | N7: 5.8 | O7: 16
A8: Feb | B8: =+B7 -> None | C8: =L8 -> 4.2 | D8: =M8 -> 21.2 | E8: None | F8: =N8 -> 4.2 | G8: =O8 -> 5.7 | K8: Feb | L8: 4.2 | M8: 21.2 | N8: 4.2 | O8: 5.7
A9: Mar | B9: =+B8 -> None | C9: 4.6 | D9: 23.6 | E9: None | F9: 4.6 | G9: 7 | K9: Mar | L9: 4.6 | M9: 23.6 | N9: 4.6 | O9: 7 | Q9: Whole Installation table A5:G18:
A10: Apr | B10: None | C10: 4.9 | D10: 26.2 | E10: None | F10: 4.8 | G10: 6.2 | K10: Apr | L10: 4.9 | M10: 26.2 | N10: 4.8 | O10: 6.2 | Q10: Mean: for 1/2 hourly and daily periods calculate mean of values across all operational combustion lines for the month
A11: May | B11: None | C11: 7.5 | D11: 48.9 | E11: None | F11: 7.6 | G11: 19.9 | K11: May | L11: 7.5 | M11: 48.9 | N11: 7.6 | O11: 19.9
A12: Jun | B12: None | C12: 10.5 | D12: 41.4 | E12: None | F12: 10.9 | G12: 22.7 | K12: Jun | L12: 10.5 | M12: 41.4 | N12: 10.9 | O12: 22.7
A13: Jul | B13: None | C13: 16.8 | D13: 54.1 | E13: None | F13: 16.9 | G13: 28.6 | K13: Jul | L13: 16.8 | M13: 54.1 | N13: 16.9 | O13: 28.6 | Q13: Maximum: for 1/2 hourly and daily periods use the highest value across all operational combustion lines for the month
A14: Aug | B14: None | C14: 5.1 | D14: 21.1 | E14: None | F14: 5.1 | G14: 8.1 | K14: Aug | L14: 5.1 | M14: 21.1 | N14: 5.1 | O14: 8.1
A15: Sep | B15: None | C15: 10.4 | D15: 43.2 | E15: None | F15: 9.7 | G15: 27.8 | K15: Sep | L15: 10.4 | M15: 43.2 | N15: 9.7 | O15: 27.8
A16: Oct | B16: None | C16: 1.6 | D16: 11 | E16: None | F16: 1.6 | G16: 2.9 | K16: Oct | L16: 1.6 | M16: 11 | N16: 1.6 | O16: 2.9
A17: Nov | B17: None | C17: 1.6 | D17: 16.4 | E17: None | F17: 1.6 | G17: 3.7 | K17: Nov | L17: 1.6 | M17: 16.4 | N17: 1.6 | O17: 3.7
A18: Dec | B18: None | C18: 1.1 | D18: 27.6 | E18: 15 | F18: 1 | G18: 3.1 | K18: Dec | L18: 1.1 | M18: 27.6 | N18: 1 | O18: 3.1
E19: * ELV came into force on 3 December 2023 | K19: Annual | L19: =AVERAGE(L7:L18) -> 6.241666667 | M19: =MAX(M7:M18) -> 73.1 | N19: =AVERAGE(N7:N18) -> 6.15 | O19: =MAX(O7:O18) -> 28.6
J21: =+A6 -> 2023 | K21: mg/Nm3 | L21: Monthly 1/2 hourly mean | M21: Monthly 1/2 hourly maximum | N21: Monthly daily mean | O21: Monthly daily maximum
J22: A2 | K22: Jan
K23: Feb
K24: Mar
K25: Apr
K26: May
K27: Jun
K28: Jul
K29: Aug
K30: Sep
K31: Oct
K32: Nov
K33: Dec
K34: Annual | L34: =AVERAGE(L22:L33) ->  | M34: =MAX(M22:M33) -> 0 | N34: =AVERAGE(N22:N33) ->  | O34: =MAX(O22:O33) -> 0
J36: =+A6 -> 2023 | K36: mg/Nm3 | L36: Monthly 1/2 hourly mean | M36: Monthly 1/2 hourly maximum | N36: Monthly daily mean | O36: Monthly daily maximum
J37: A3 | K37: Jan
K38: Feb
K39: Mar
K40: Apr
K41: May
K42: Jun
K43: Jul
K44: Aug
K45: Sep
K46: Oct
K47: Nov
A48: Comments : | K48: Dec
A49: An indicated ELV value of zero in the table above means that no ammonia limit is/was set in the permit. | K49: Annual | L49: =AVERAGE(L37:L48) ->  | M49: =MAX(M37:M48) -> 0 | N49: =AVERAGE(N37:N48) ->  | O49: =MAX(O37:O48) -> 0
J51: =+A6 -> 2023 | K51: mg/Nm3 | L51: Monthly 1/2 hourly mean | M51: Monthly 1/2 hourly maximum | N51: Monthly daily mean | O51: Monthly daily maximum
J52: A4 | K52: Jan
K53: Feb
K54: Mar
K55: Apr
K56: May
K57: Jun
K58: Jul
K59: Aug
K60: Sep
K61: Oct
K62: Nov
K63: Dec
K64: Annual | L64: =AVERAGE(L52:L63) ->  | M64: =MAX(M52:M63) -> 0 | N64: =AVERAGE(N52:N63) ->  | O64: =MAX(O52:O63) -> 0
J66: =+A6 -> 2023 | K66: mg/Nm3 | L66: Monthly 1/2 hourly mean | M66: Monthly 1/2 hourly maximum | N66: Monthly daily mean | O66: Monthly daily maximum
J67: A5 | K67: Jan
K68: Feb
K69: Mar
K70: Apr
K71: May
K72: Jun
K73: Jul
K74: Aug
K75: Sep
K76: Oct
K77: Nov
K78: Dec
K79: Annual | L79: =AVERAGE(L67:L78) ->  | M79: =MAX(M67:M78) -> 0 | N79: =AVERAGE(N67:N78) ->  | O79: =MAX(O67:O78) -> 0
